Department family,Entity,Date,Expense type,Expense area,Supplier,Transaction number,Amount,VAT registration number
Department for Business Energy and Industrial Strategy,Intellectual Property Office,28/03/2023,Travel & Subsistence,"Rights, Policy & Enforcement Directorate",Personal expenses,OS000000202/1,728.02,Not Applicable
Department for Business Energy and Industrial Strategy,Intellectual Property Office,24/03/2023,Travel & Subsistence,"Rights, Policy & Enforcement Directorate",Personal expenses,OS000000200,"1,107.34",Not Applicable
Department for Business Energy and Industrial Strategy,Intellectual Property Office,07/03/2023,Staff Costs,"Rights, Policy & Enforcement Directorate",Personal expenses,AH000000690,548.00,Not Applicable
Department for Business Energy and Industrial Strategy,Intellectual Property Office,01/03/2023,Pay Costs,PDTM Directorate,Acorn Recruitment Ltd,1023971,544.99,Not Applicable
Department for Business Energy and Industrial Strategy,Intellectual Property Office,01/03/2023,Pay Costs,PDTM Directorate,Acorn Recruitment Ltd,1023972,639.47,Not Applicable
Department for Business Energy and Industrial Strategy,Intellectual Property Office,10/03/2023,Pay Costs,PDTM Directorate,Acorn Recruitment Ltd,1024474,763.24,Not Applicable
Department for Business Energy and Industrial Strategy,Intellectual Property Office,10/03/2023,Pay Costs,PDTM Directorate,Acorn Recruitment Ltd,1024475,763.24,Not Applicable
Department for Business Energy and Industrial Strategy,Intellectual Property Office,21/03/2023,Pay Costs,PDTM Directorate,Acorn Recruitment Ltd,1024927,763.24,Not Applicable
Department for Business Energy and Industrial Strategy,Intellectual Property Office,21/03/2023,Pay Costs,PDTM Directorate,Acorn Recruitment Ltd,1024928,608.53,Not Applicable
Department for Business Energy and Industrial Strategy,Intellectual Property Office,28/03/2023,Pay Costs,PDTM Directorate,Acorn Recruitment Ltd,1025375,763.24,Not Applicable
Department for Business Energy and Industrial Strategy,Intellectual Property Office,28/03/2023,Staff Costs,"Rights, Policy & Enforcement Directorate",Acorn Recruitment Ltd,1025445,"7,560.00",Not Applicable
Department for Business Energy and Industrial Strategy,Intellectual Property Office,29/03/2023,Pay Costs,PDTM Directorate,Acorn Recruitment Ltd,1025826,685.88,Not Applicable
Department for Business Energy and Industrial Strategy,Intellectual Property Office,29/03/2023,Pay Costs,PDTM Directorate,Acorn Recruitment Ltd,1025827,763.24,Not Applicable
Department for Business Energy and Industrial Strategy,Intellectual Property Office,13/03/2023,Office Supplies,"Rights, Policy & Enforcement Directorate",Banner Group Limited,9229654A,"1,476.80",Not Applicable
Department for Business Energy and Industrial Strategy,Intellectual Property Office,13/03/2023,Information Technology,DDaT Directorate,Banner Group Limited,9229654A,"6,120.00",Not Applicable
Department for Business Energy and Industrial Strategy,Intellectual Property Office,09/03/2023,Office Supplies,"Rights, Policy & Enforcement Directorate",Banner Group Limited,9369026A,"2,362.99",Not Applicable
Department for Business Energy and Industrial Strategy,Intellectual Property Office,10/03/2023,Telecoms,DDaT Directorate,British  Telecom,04842270AC01-MAR,"5,293.19",Not Applicable
Department for Business Energy and Industrial Strategy,Intellectual Property Office,01/03/2023,Telecoms,DDaT Directorate,British  Telecom,VP02239170-FEB23,"1,344.40",Not Applicable
Department for Business Energy and Industrial Strategy,Intellectual Property Office,29/03/2023,Telecoms,DDaT Directorate,British  Telecom,VP02239170-MAR23,"1,343.71",Not Applicable
Department for Business Energy and Industrial Strategy,Intellectual Property Office,08/03/2023,Office Supplies,PDTM Directorate,British Library,7000400195,"2,118.28",Not Applicable
Department for Business Energy and Industrial Strategy,Intellectual Property Office,20/03/2023,Miscellaneous Expenses General,Strategy Directorate,"Burns Owens Partnership Ltd, t/a BOP Con",INV-22/3433,"36,360.00",Not Applicable
Department for Business Energy and Industrial Strategy,Intellectual Property Office,06/03/2023,Miscellaneous Expenses General,"Rights, Policy & Enforcement Directorate",Capital Law LLP,70007825,"1,440.60",Not Applicable
Department for Business Energy and Industrial Strategy,Intellectual Property Office,30/03/2023,Staff Costs,Strategy Directorate,Cardiff University,1120397-3,"3,420.00",Not Applicable
Department for Business Energy and Industrial Strategy,Intellectual Property Office,07/03/2023,Staff Costs,"Rights, Policy & Enforcement Directorate",Cardiff University,PERITEM,"-1,000.00",Not Applicable
Department for Business Energy and Industrial Strategy,Intellectual Property Office,16/03/2023,Information Technology,Finance Directorate,Companies House,S0002278456,"162,286.94",Not Applicable
Department for Business Energy and Industrial Strategy,Intellectual Property Office,08/03/2023,Staff Costs,"Rights, Policy & Enforcement Directorate",Computeraid Ltd,22748,"1,890.00",Not Applicable
Department for Business Energy and Industrial Strategy,Intellectual Property Office,10/03/2023,Postage & Delivery Costs,"Rights, Policy & Enforcement Directorate",DHL International (UK) Ltd,BRSR006864822,"6,027.44",Not Applicable
Department for Business Energy and Industrial Strategy,Intellectual Property Office,09/03/2023,Postage & Delivery Costs,"Rights, Policy & Enforcement Directorate",DHL International (UK) Ltd,BRSR006892374,"2,396.28",Not Applicable
Department for Business Energy and Industrial Strategy,Intellectual Property Office,22/03/2023,Postage & Delivery Costs,"Rights, Policy & Enforcement Directorate",DHL International (UK) Ltd,BRSR006912515,"1,515.27",Not Applicable
Department for Business Energy and Industrial Strategy,Intellectual Property Office,22/03/2023,Postage & Delivery Costs,"Rights, Policy & Enforcement Directorate",DHL International (UK) Ltd,BRSR006935106,"3,759.04",Not Applicable
Department for Business Energy and Industrial Strategy,Intellectual Property Office,07/03/2023,Staff Costs,DDaT Directorate,GovNet Communications,SD00000068,-594.00,Not Applicable
Department for Business Energy and Industrial Strategy,Intellectual Property Office,31/03/2023,Supporting UK Business,PDTM Directorate,Greaves Brewster LLP,37096,"2,500.00",Not Applicable
Department for Business Energy and Industrial Strategy,Intellectual Property Office,27/03/2023,Supporting UK Business,PDTM Directorate,Haseltine Lake,1161718,"2,500.00",Not Applicable
Department for Business Energy and Industrial Strategy,Intellectual Property Office,01/03/2023,Pay Costs,DDaT Directorate,Hays Specialist Recruitment,1012813347,"4,485.54",Not Applicable
Department for Business Energy and Industrial Strategy,Intellectual Property Office,01/03/2023,Pay Costs,DDaT Directorate,Hays Specialist Recruitment,1012813382,"4,635.42",Not Applicable
Department for Business Energy and Industrial Strategy,Intellectual Property Office,15/03/2023,Pay Costs,DDaT Directorate,Hays Specialist Recruitment,1012827774,"4,635.42",Not Applicable
Department for Business Energy and Industrial Strategy,Intellectual Property Office,15/03/2023,Pay Costs,DDaT Directorate,Hays Specialist Recruitment,1012828679,"4,485.54",Not Applicable
Department for Business Energy and Industrial Strategy,Intellectual Property Office,15/03/2023,Pay Costs,DDaT Directorate,Hays Specialist Recruitment,1012842080,"4,635.42",Not Applicable
Department for Business Energy and Industrial Strategy,Intellectual Property Office,20/03/2023,Pay Costs,DDaT Directorate,Hays Specialist Recruitment,1012845889,"4,485.54",Not Applicable
Department for Business Energy and Industrial Strategy,Intellectual Property Office,15/03/2023,Pay Costs,"Rights, Policy & Enforcement Directorate",Home  Office,2626121,"3,670.93",Not Applicable
Department for Business Energy and Industrial Strategy,Intellectual Property Office,15/03/2023,Pay Costs,"Rights, Policy & Enforcement Directorate",Home  Office,2626122,"4,263.35",Not Applicable
Department for Business Energy and Industrial Strategy,Intellectual Property Office,15/03/2023,Pay Costs,"Rights, Policy & Enforcement Directorate",Home  Office,2626149,"5,290.74",Not Applicable
Department for Business Energy and Industrial Strategy,Intellectual Property Office,16/03/2023,Staff Costs,"Rights, Policy & Enforcement Directorate",Informa Connect Limited,3900791366,"7,350.00",Not Applicable
Department for Business Energy and Industrial Strategy,Intellectual Property Office,13/03/2023,Travel & Subsistence,PDTM Directorate,Zenith,320545,525.82,Not Applicable
Department for Business Energy and Industrial Strategy,Intellectual Property Office,27/03/2023,Travel & Subsistence,PDTM Directorate,Zenith,321344,"1,493.18",Not Applicable
Department for Business Energy and Industrial Strategy,Intellectual Property Office,20/03/2023,Legal & Hearings,PDTM Directorate,Marten Walsh Cherer Ltd,126054,"1,213.01",Not Applicable
Department for Business Energy and Industrial Strategy,Intellectual Property Office,30/03/2023,Miscellaneous Expenses General,"Rights, Policy & Enforcement Directorate",MyCSP Ltd,19124540,"3,594.00",Not Applicable
Department for Business Energy and Industrial Strategy,Intellectual Property Office,23/03/2023,Information Technology,DDaT Directorate,Phoenix Software Ltd,OP/I962929,"39,641.90",Not Applicable
Department for Business Energy and Industrial Strategy,Intellectual Property Office,13/03/2023,Supporting UK Business,PDTM Directorate,Potter Clarkson LLP,1021257,"2,500.00",Not Applicable
Department for Business Energy and Industrial Strategy,Intellectual Property Office,27/03/2023,Supporting UK Business,PDTM Directorate,Potter Clarkson LLP,1022031,"2,500.00",Not Applicable
Department for Business Energy and Industrial Strategy,Intellectual Property Office,14/03/2023,Staff Costs,DDaT Directorate,QA Ltd,QA-SIN-000274151,"9,000.00",Not Applicable
Department for Business Energy and Industrial Strategy,Intellectual Property Office,10/03/2023,Postage & Delivery Costs,"Rights, Policy & Enforcement Directorate",Royal Mail,9066887194,"2,400.35",Not Applicable
Department for Business Energy and Industrial Strategy,Intellectual Property Office,22/03/2023,Postage & Delivery Costs,"Rights, Policy & Enforcement Directorate",Royal Mail,9066941985,"1,535.81",Not Applicable
Department for Business Energy and Industrial Strategy,Intellectual Property Office,22/03/2023,Postage & Delivery Costs,"Rights, Policy & Enforcement Directorate",Royal Mail,9067002285,"2,551.58",Not Applicable
Department for Business Energy and Industrial Strategy,Intellectual Property Office,29/03/2023,Postage & Delivery Costs,"Rights, Policy & Enforcement Directorate",Royal Mail,9067060606,"1,361.14",Not Applicable
Department for Business Energy and Industrial Strategy,Intellectual Property Office,29/03/2023,Postage & Delivery Costs,"Rights, Policy & Enforcement Directorate",Royal Mail,9067113411,"1,636.56",Not Applicable
Department for Business Energy and Industrial Strategy,Intellectual Property Office,08/03/2023,Accommodation,"Rights, Policy & Enforcement Directorate",Senator International Ltd,S01796688,"7,272.00",Not Applicable
Department for Business Energy and Industrial Strategy,Intellectual Property Office,10/03/2023,Accommodation,"Rights, Policy & Enforcement Directorate",Senator International Ltd,SILINV008270,"1,658.40",Not Applicable
Department for Business Energy and Industrial Strategy,Intellectual Property Office,16/03/2023,Supporting UK Business,PDTM Directorate,Simmons & Simmons Ltd,GB011167934,"2,500.00",Not Applicable
Department for Business Energy and Industrial Strategy,Intellectual Property Office,31/03/2023,Information Technology,DDaT Directorate,Specialist Computer Centres Plc,OP/N335586,"3,053.98",Not Applicable
Department for Business Energy and Industrial Strategy,Intellectual Property Office,20/03/2023,Information Technology,DDaT Directorate,Specialist Computer Centres Plc,OP/N344128,"2,088.36",Not Applicable
Department for Business Energy and Industrial Strategy,Intellectual Property Office,21/03/2023,Other FA at Cost,DDaT Directorate,Specialist Computer Centres Plc,OP/N345744,"24,023.21",Not Applicable
Department for Business Energy and Industrial Strategy,Intellectual Property Office,22/03/2023,Supporting UK Business,"Rights, Policy & Enforcement Directorate",Specialist Computer Centres Plc,OP/N346475,"18,525.88",Not Applicable
Department for Business Energy and Industrial Strategy,Intellectual Property Office,24/03/2023,Information Technology,DDaT Directorate,Specialist Computer Centres Plc,OP/N348250,"11,463.34",Not Applicable
Department for Business Energy and Industrial Strategy,Intellectual Property Office,24/03/2023,Information Technology,DDaT Directorate,Specialist Computer Centres Plc,OP/N348251,"12,345.14",Not Applicable
Department for Business Energy and Industrial Strategy,Intellectual Property Office,31/03/2023,Office Machinery,"Rights, Policy & Enforcement Directorate",Total Print Finishing Services Ltd,42886,910.74,Not Applicable
Department for Business Energy and Industrial Strategy,Intellectual Property Office,01/03/2023,Accommodation,"Rights, Policy & Enforcement Directorate",Total Security Protection Ltd,206570,"92,275.21",Not Applicable
Department for Business Energy and Industrial Strategy,Intellectual Property Office,01/03/2023,Accommodation,"Rights, Policy & Enforcement Directorate",Total Security Protection Ltd,206642,"87,509.09",Not Applicable
Department for Business Energy and Industrial Strategy,Intellectual Property Office,13/03/2023,Staff Costs,Strategy Directorate,University of Glasgow,1805198,555.50,Not Applicable
Department for Business Energy and Industrial Strategy,Intellectual Property Office,31/03/2023,Miscellaneous Expenses General,Strategy Directorate,The University of Manchester,17066989,"40,000.00",Not Applicable
Department for Business Energy and Industrial Strategy,Intellectual Property Office,22/03/2023,Accommodation,"Rights, Policy & Enforcement Directorate",Wastesavers Ltd,21886,524.03,Not Applicable
Department for Business Energy and Industrial Strategy,Intellectual Property Office,06/03/2023,Staff Costs,"Rights, Policy & Enforcement Directorate",Worth Consulting Ltd,2041,"1,572.00",Not Applicable
Department for Business Energy and Industrial Strategy,Intellectual Property Office,01/03/2023,Staff Costs,"Rights, Policy & Enforcement Directorate",Worth Consulting Ltd,2042,714.00,Not Applicable
Department for Business Energy and Industrial Strategy,Intellectual Property Office,08/03/2023,Staff Costs,"Rights, Policy & Enforcement Directorate",Worth Consulting Ltd,2046,"1,569.00",Not Applicable
Department for Business Energy and Industrial Strategy,Intellectual Property Office,09/03/2023,Staff Costs,"Rights, Policy & Enforcement Directorate",Worth Consulting Ltd,2047,714.00,Not Applicable
Department for Business Energy and Industrial Strategy,Intellectual Property Office,29/03/2023,Staff Costs,"Rights, Policy & Enforcement Directorate",Worth Consulting Ltd,2050,"1,572.00",Not Applicable
Department for Business Energy and Industrial Strategy,Intellectual Property Office,22/03/2023,Office Machinery,"Rights, Policy & Enforcement Directorate",Xerox Finance,97660199,"2,557.08",Not Applicable
Department for Business Energy and Industrial Strategy,Intellectual Property Office,22/03/2023,Office Machinery,"Rights, Policy & Enforcement Directorate",Xerox Finance,97660498,"2,983.45",Not Applicable
Department for Business Energy and Industrial Strategy,Intellectual Property Office,17/03/2023,Marketing & Publicity,Strategy Directorate,Aardman Animations Ltd,43345,"90,000.00",Not Applicable
Department for Business Energy and Industrial Strategy,Intellectual Property Office,17/03/2023,Marketing & Publicity,Strategy Directorate,Aardman Animations Ltd,43702CR,"-90,000.00",Not Applicable
Department for Business Energy and Industrial Strategy,Intellectual Property Office,23/03/2023,Marketing & Publicity,Strategy Directorate,Aardman Animations Ltd,43713,"48,000.00",Not Applicable
Department for Business Energy and Industrial Strategy,Intellectual Property Office,06/03/2023,Office Supplies,"Rights, Policy & Enforcement Directorate",Antalis UK Ltd,2720253,"2,368.93",Not Applicable
Department for Business Energy and Industrial Strategy,Intellectual Property Office,21/03/2023,Information Technology,DDaT Directorate,Computacenter (UK) ltd,3884007090,"12,785.30",Not Applicable
Department for Business Energy and Industrial Strategy,Intellectual Property Office,31/03/2023,Information Technology,DDaT Directorate,Computacenter (UK) ltd,3884008669,"30,352.27",Not Applicable
Department for Business Energy and Industrial Strategy,Intellectual Property Office,01/03/2023,Supporting UK Business,PDTM Directorate,Lincoln IP,15846,"4,800.00",Not Applicable
Department for Business Energy and Industrial Strategy,Intellectual Property Office,03/03/2023,Supporting UK Business,PDTM Directorate,Marks & Clerk LLP,5301787,"2,500.00",Not Applicable
Department for Business Energy and Industrial Strategy,Intellectual Property Office,22/03/2023,Supporting UK Business,PDTM Directorate,Marks & Clerk LLP,5305788,"2,500.00",Not Applicable
Department for Business Energy and Industrial Strategy,Intellectual Property Office,31/03/2023,Supporting UK Business,PDTM Directorate,Marks & Clerk LLP,5307395,"2,500.00",Not Applicable
Department for Business Energy and Industrial Strategy,Intellectual Property Office,14/03/2023,Supporting UK Business,PDTM Directorate,Mewburn  Ellis LLP,260133,"2,500.00",Not Applicable
Department for Business Energy and Industrial Strategy,Intellectual Property Office,29/03/2023,Supporting UK Business,PDTM Directorate,Mewburn  Ellis LLP,268343,"2,500.00",Not Applicable
Department for Business Energy and Industrial Strategy,Intellectual Property Office,30/03/2023,Supporting UK Business,PDTM Directorate,Venner Shipley  LLP,449716,"2,500.00",Not Applicable
Department for Business Energy and Industrial Strategy,Intellectual Property Office,06/03/2023,Telecoms,DDaT Directorate,Vodafone Corporate Ltd,103453345,"1,745.58",Not Applicable
Department for Business Energy and Industrial Strategy,Intellectual Property Office,29/03/2023,Telecoms,DDaT Directorate,Vodafone Corporate Ltd,103630144,"1,893.69",Not Applicable
Department for Business Energy and Industrial Strategy,Intellectual Property Office,09/03/2023,Supporting UK Business,Business & International Policy Directorate,Foreign & Commonwealth and Development O,20003853,"63,616.88",Not Applicable
Department for Business Energy and Industrial Strategy,Intellectual Property Office,09/03/2023,Supporting UK Business,Business & International Policy Directorate,Foreign & Commonwealth and Development O,20003873,"-2,797.44",Not Applicable
Department for Business Energy and Industrial Strategy,Intellectual Property Office,09/03/2023,Supporting UK Business,Business & International Policy Directorate,Foreign & Commonwealth and Development O,20003953,"1,643.64",Not Applicable
Department for Business Energy and Industrial Strategy,Intellectual Property Office,13/03/2023,Supporting UK Business,Business & International Policy Directorate,Foreign & Commonwealth and Development O,20004236,"24,711.36",Not Applicable
Department for Business Energy and Industrial Strategy,Intellectual Property Office,21/03/2023,Supporting UK Business,Business & International Policy Directorate,Foreign & Commonwealth and Development O,20004284,"-1,291.25",Not Applicable
Department for Business Energy and Industrial Strategy,Intellectual Property Office,21/03/2023,Supporting UK Business,Business & International Policy Directorate,Foreign & Commonwealth and Development O,20004485,"8,483.41",Not Applicable
Department for Business Energy and Industrial Strategy,Intellectual Property Office,22/03/2023,Supporting UK Business,Business & International Policy Directorate,Foreign & Commonwealth and Development O,20004712,"29,565.81",Not Applicable
Department for Business Energy and Industrial Strategy,Intellectual Property Office,30/03/2023,Supporting UK Business,Business & International Policy Directorate,Foreign & Commonwealth and Development O,20005132,"51,848.44",Not Applicable
Department for Business Energy and Industrial Strategy,Intellectual Property Office,02/03/2023,Pay Costs,"Rights, Policy & Enforcement Directorate",HM REVENUE & CUSTOMS,XDE29240006223,"1,172.00",Not Applicable
Department for Business Energy and Industrial Strategy,Intellectual Property Office,13/03/2023,Staff Costs,Strategy Directorate,HM TREASURY,45313,"4,752.48",Not Applicable
Department for Business Energy and Industrial Strategy,Intellectual Property Office,29/03/2023,Misc Expenses Finance,Finance Directorate,NATIONAL AUDIT OFFICE,SIN003649,"35,671.00",Not Applicable
Department for Business Energy and Industrial Strategy,Intellectual Property Office,08/03/2023,Information Technology,Finance Directorate,Advanced 365 Limited,INV-52093,873.00,Not Applicable
Department for Business Energy and Industrial Strategy,Intellectual Property Office,20/03/2023,Information Technology,DDaT Directorate,Advanced 365 Limited,INV-94046,"30,180.00",Not Applicable
Department for Business Energy and Industrial Strategy,Intellectual Property Office,22/03/2023,Information Technology,DDaT Directorate,Advanced 365 Limited,INV-99276,"30,180.00",Not Applicable
Department for Business Energy and Industrial Strategy,Intellectual Property Office,09/03/2023,Postage & Delivery Costs,"Rights, Policy & Enforcement Directorate",RICO LOGISTICS LTD,SINRLLFS00411942,894.01,Not Applicable
Department for Business Energy and Industrial Strategy,Intellectual Property Office,14/03/2023,Postage & Delivery Costs,"Rights, Policy & Enforcement Directorate",RICO LOGISTICS LTD,SINRLLFS00412561,"1,314.01",Not Applicable
Department for Business Energy and Industrial Strategy,Intellectual Property Office,21/03/2023,Postage & Delivery Costs,"Rights, Policy & Enforcement Directorate",RICO LOGISTICS LTD,SINRLLFS00413572,978.01,Not Applicable
Department for Business Energy and Industrial Strategy,Intellectual Property Office,27/03/2023,Postage & Delivery Costs,"Rights, Policy & Enforcement Directorate",RICO LOGISTICS LTD,SINRLLFS00414459,965.21,Not Applicable
Department for Business Energy and Industrial Strategy,Intellectual Property Office,28/03/2023,Telecoms,Projects,VIRGIN MEDIA,908251-08MAR23,"22,322.10",Not Applicable
Department for Business Energy and Industrial Strategy,Intellectual Property Office,10/03/2023,Telecoms,DDaT Directorate,VIRGIN MEDIA,917218-MAR23,572.10,Not Applicable
Department for Business Energy and Industrial Strategy,Intellectual Property Office,31/03/2023,Telecoms,DDaT Directorate,VIRGIN MEDIA,925289-132,"27,302.10",Not Applicable
Department for Business Energy and Industrial Strategy,Intellectual Property Office,21/03/2023,Information Technology,DDaT Directorate,Open Connections Solutions Limited,340042,"1,555.20",Not Applicable
Department for Business Energy and Industrial Strategy,Intellectual Property Office,21/03/2023,Information Technology,DDaT Directorate,Open Connections Solutions Limited,340051,"1,036.80",Not Applicable
Department for Business Energy and Industrial Strategy,Intellectual Property Office,28/03/2023,Information Technology,DDaT Directorate,Open Connections Solutions Limited,340056,"2,073.60",Not Applicable
Department for Business Energy and Industrial Strategy,Intellectual Property Office,29/03/2023,Information Technology,DDaT Directorate,Open Connections Solutions Limited,340060,"2,073.60",Not Applicable
Department for Business Energy and Industrial Strategy,Intellectual Property Office,22/03/2023,Supporting UK Business,PDTM Directorate,LAWRIE INTELLECTUAL PROPERTY,125507,"2,500.00",Not Applicable
Department for Business Energy and Industrial Strategy,Intellectual Property Office,14/03/2023,Supporting UK Business,Business & International Policy Directorate,INNGOT LTD,U23-2-6,"9,150.01",Not Applicable
Department for Business Energy and Industrial Strategy,Intellectual Property Office,30/03/2023,Supporting UK Business,PDTM Directorate,STEPHENS SCOWN LLP,196882,"5,000.00",Not Applicable
Department for Business Energy and Industrial Strategy,Intellectual Property Office,29/03/2023,Supporting UK Business,PDTM Directorate,CAMERON INTELLECTUAL PROPERTY LTD,8446-23,"2,500.00",Not Applicable
Department for Business Energy and Industrial Strategy,Intellectual Property Office,02/03/2023,Pay Costs,Finance Directorate,Accountancy Recruitment Wales Ltd,999910,"1,268.06",Not Applicable
Department for Business Energy and Industrial Strategy,Intellectual Property Office,08/03/2023,Pay Costs,Finance Directorate,Accountancy Recruitment Wales Ltd,999911,"1,268.06",Not Applicable
Department for Business Energy and Industrial Strategy,Intellectual Property Office,21/03/2023,Pay Costs,Finance Directorate,Accountancy Recruitment Wales Ltd,999912,"1,268.06",Not Applicable
Department for Business Energy and Industrial Strategy,Intellectual Property Office,01/03/2023,Accommodation,"Rights, Policy & Enforcement Directorate",EDF ENERGY,14488329,"30,422.21",Not Applicable
Department for Business Energy and Industrial Strategy,Intellectual Property Office,02/03/2023,Accommodation,"Rights, Policy & Enforcement Directorate",EDF ENERGY,14497769,"1,549.90",Not Applicable
Department for Business Energy and Industrial Strategy,Intellectual Property Office,08/03/2023,Accommodation,"Rights, Policy & Enforcement Directorate",EDF ENERGY,14759555,"28,782.61",Not Applicable
Department for Business Energy and Industrial Strategy,Intellectual Property Office,08/03/2023,Accommodation,"Rights, Policy & Enforcement Directorate",EDF ENERGY,14770639,"1,503.11",Not Applicable
Department for Business Energy and Industrial Strategy,Intellectual Property Office,21/03/2023,Supporting UK Business,"Rights, Policy & Enforcement Directorate",DAN ANTHONY PRESENTATIONS LTD,241,"1,500.00",Not Applicable
Department for Business Energy and Industrial Strategy,Intellectual Property Office,09/03/2023,Supporting UK Business,PDTM Directorate,VIRTUOSO LEGAL IP,8958,660.00,Not Applicable
Department for Business Energy and Industrial Strategy,Intellectual Property Office,30/03/2023,Supporting UK Business,PDTM Directorate,VIRTUOSO LEGAL IP,8959,"1,716.00",Not Applicable
Department for Business Energy and Industrial Strategy,Intellectual Property Office,09/03/2023,Supporting UK Business,PDTM Directorate,VIRTUOSO LEGAL IP,8960,756.00,Not Applicable
Department for Business Energy and Industrial Strategy,Intellectual Property Office,27/03/2023,Supporting UK Business,PDTM Directorate,VIRTUOSO LEGAL IP,8983,558.01,Not Applicable
Department for Business Energy and Industrial Strategy,Intellectual Property Office,27/03/2023,Supporting UK Business,PDTM Directorate,VIRTUOSO LEGAL IP,8984,960.00,Not Applicable
Department for Business Energy and Industrial Strategy,Intellectual Property Office,23/03/2023,Miscellaneous Expenses General,Strategy Directorate,Queen Mary University of London,60005602,"17,160.00",Not Applicable
Department for Business Energy and Industrial Strategy,Intellectual Property Office,28/03/2023,Pay Costs,"Rights, Policy & Enforcement Directorate",Police & Crime Commissioner Sussex,1800051461,"5,108.00",Not Applicable
Department for Business Energy and Industrial Strategy,Intellectual Property Office,13/03/2023,Staff Costs,"Rights, Policy & Enforcement Directorate",Sodexo Motivation Solutions UK Ltd,3861538,"2,301.79",Not Applicable
Department for Business Energy and Industrial Strategy,Intellectual Property Office,03/03/2023,Telecoms,DDaT Directorate,EE Ltd,1287743392,789.02,Not Applicable
Department for Business Energy and Industrial Strategy,Intellectual Property Office,22/03/2023,Telecoms,DDaT Directorate,EE Ltd,1287809674,737.06,Not Applicable
Department for Business Energy and Industrial Strategy,Intellectual Property Office,22/03/2023,Legal & Hearings,PDTM Directorate,Government Legal Department,523998,"1,343.88",Not Applicable
Department for Business Energy and Industrial Strategy,Intellectual Property Office,09/03/2023,Telecoms,DDaT Directorate,Personal expenses,UK10/032023/7832,"2,238.11",Not Applicable
Department for Business Energy and Industrial Strategy,Intellectual Property Office,01/03/2023,Staff Costs,DDaT Directorate,Harvey Nash Ltd,INV-145101,"7,176.00",Not Applicable
Department for Business Energy and Industrial Strategy,Intellectual Property Office,14/03/2023,Miscellaneous Expenses General,PDTM Directorate,FCDO Services,70004824,525.00,Not Applicable
Department for Business Energy and Industrial Strategy,Intellectual Property Office,06/03/2023,Supporting UK Business,PDTM Directorate,Murgitroyd & Company Ltd,011164A-23,"5,000.00",Not Applicable
Department for Business Energy and Industrial Strategy,Intellectual Property Office,22/03/2023,Supporting UK Business,PDTM Directorate,Murgitroyd & Company Ltd,019043-23,"2,500.00",Not Applicable
Department for Business Energy and Industrial Strategy,Intellectual Property Office,31/03/2023,Supporting UK Business,PDTM Directorate,Murgitroyd & Company Ltd,022956M-23,"2,500.00",Not Applicable
Department for Business Energy and Industrial Strategy,Intellectual Property Office,31/03/2023,Supporting UK Business,PDTM Directorate,Murgitroyd & Company Ltd,022962-23,"2,500.00",Not Applicable
Department for Business Energy and Industrial Strategy,Intellectual Property Office,22/03/2023,Supporting UK Business,PDTM Directorate,Wilson Gunn,151094M,"2,500.00",Not Applicable
Department for Business Energy and Industrial Strategy,Intellectual Property Office,06/03/2023,Staff Costs,"Rights, Policy & Enforcement Directorate",The Clive Davis Partnership Ltd.,CDSC/3664,"1,200.00",Not Applicable
Department for Business Energy and Industrial Strategy,Intellectual Property Office,10/03/2023,Staff Costs,"Rights, Policy & Enforcement Directorate",The Clive Davis Partnership Ltd.,CDSC/3669,"1,200.00",Not Applicable
Department for Business Energy and Industrial Strategy,Intellectual Property Office,08/03/2023,Staff Costs,"Rights, Policy & Enforcement Directorate",The Clive Davis Partnership Ltd.,CDSC/3693,"6,000.00",Not Applicable
Department for Business Energy and Industrial Strategy,Intellectual Property Office,10/03/2023,Staff Costs,"Rights, Policy & Enforcement Directorate",The Clive Davis Partnership Ltd.,CDSC/3694,"1,200.00",Not Applicable
Department for Business Energy and Industrial Strategy,Intellectual Property Office,10/03/2023,Staff Costs,"Rights, Policy & Enforcement Directorate",The Clive Davis Partnership Ltd.,CDSC/3695,"1,200.00",Not Applicable
Department for Business Energy and Industrial Strategy,Intellectual Property Office,20/03/2023,Supporting UK Business,PDTM Directorate,Web Usability Partnership Ltd,2035,"4,740.00",Not Applicable
Department for Business Energy and Industrial Strategy,Intellectual Property Office,29/03/2023,Information Technology,PDTM Directorate,European Patent Office,40309001,"127,853.77",Not Applicable
Department for Business Energy and Industrial Strategy,Intellectual Property Office,23/03/2023,Miscellaneous Expenses General,PDTM Directorate,European Patent Office,40310124,"60,297.29",Not Applicable
Department for Business Energy and Industrial Strategy,Intellectual Property Office,27/03/2023,Information Technology,PDTM Directorate,European Patent Office,40310154,"134,243.39",Not Applicable
Department for Business Energy and Industrial Strategy,Intellectual Property Office,29/03/2023,Information Technology,PDTM Directorate,European Patent Office,41006154,"-127,853.77",Not Applicable
Department for Business Energy and Industrial Strategy,Intellectual Property Office,29/03/2023,Bad Debt Written Off,Finance Directorate,European Patent Office,41006154,"2,731.14",Not Applicable
Department for Business Energy and Industrial Strategy,Intellectual Property Office,31/03/2023,Information Technology,DDaT Directorate,COEXYA SAS,SIP-EUA-F2303004,"140,753.58",Not Applicable
Department for Business Energy and Industrial Strategy,Intellectual Property Office,23/03/2023,Miscellaneous Expenses General,"Rights, Policy & Enforcement Directorate",Insight Health Screening Limited,SIN-00047,"2,949.04",Not Applicable
Department for Business Energy and Industrial Strategy,Intellectual Property Office,23/03/2023,Office Supplies,"Rights, Policy & Enforcement Directorate",Insight Health Screening Limited,SIN-00459,"1,935.60",Not Applicable
Department for Business Energy and Industrial Strategy,Intellectual Property Office,23/03/2023,Accommodation,"Rights, Policy & Enforcement Directorate",Insight Health Screening Limited,SIN-00582,"1,232.87",Not Applicable
Department for Business Energy and Industrial Strategy,Intellectual Property Office,23/03/2023,Office Supplies,"Rights, Policy & Enforcement Directorate",Insight Health Screening Limited,SIN-00619,"4,178.94",Not Applicable
Department for Business Energy and Industrial Strategy,Intellectual Property Office,28/03/2023,Office Supplies,"Rights, Policy & Enforcement Directorate",Insight Health Screening Limited,SIN-00748,"2,164.39",Not Applicable
Department for Business Energy and Industrial Strategy,Intellectual Property Office,29/03/2023,Supporting UK Business,PDTM Directorate,Scintilla,INV-03767,"2,500.00",Not Applicable
Department for Business Energy and Industrial Strategy,Intellectual Property Office,09/03/2023,Supporting UK Business,PDTM Directorate,Forresters clear direction,KBO-5877328,"2,142.00",Not Applicable
Department for Business Energy and Industrial Strategy,Intellectual Property Office,08/03/2023,Information Technology,Projects,People for Research Ltd,12528,"6,208.00",Not Applicable
Department for Business Energy and Industrial Strategy,Intellectual Property Office,29/03/2023,Information Technology,Projects,People for Research Ltd,12641,"2,172.80",Not Applicable
Department for Business Energy and Industrial Strategy,Intellectual Property Office,09/03/2023,Miscellaneous Expenses General,"Rights, Policy & Enforcement Directorate",Health Assured Ltd,SF-145625,"3,264.10",Not Applicable
Department for Business Energy and Industrial Strategy,Intellectual Property Office,23/03/2023,Information Technology,PDTM Directorate,Questel Ireland Ltd,11016919,905.12,Not Applicable
Department for Business Energy and Industrial Strategy,Intellectual Property Office,31/03/2023,Supporting UK Business,PDTM Directorate,Abel & Imray,504297,"2,500.00",Not Applicable
Department for Business Energy and Industrial Strategy,Intellectual Property Office,21/03/2023,Supporting UK Business,PDTM Directorate,Abel & Imray,504419,"5,000.00",Not Applicable
Department for Business Energy and Industrial Strategy,Intellectual Property Office,21/03/2023,Supporting UK Business,PDTM Directorate,Abel & Imray,504822,"2,500.00",Not Applicable
Department for Business Energy and Industrial Strategy,Intellectual Property Office,22/03/2023,Staff Costs,"Rights, Policy & Enforcement Directorate",Ernst & Young LLP,GB01G000399660,882.40,Not Applicable
Department for Business Energy and Industrial Strategy,Intellectual Property Office,01/03/2023,Staff Costs,DDaT Directorate,KPMG LLP (CSL),5502581162,"7,412.50",Not Applicable
Department for Business Energy and Industrial Strategy,Intellectual Property Office,08/03/2023,Staff Costs,DDaT Directorate,KPMG LLP (CSL),5502582954,"2,851.28",Not Applicable
Department for Business Energy and Industrial Strategy,Intellectual Property Office,08/03/2023,Staff Costs,DDaT Directorate,KPMG LLP (CSL),5502582955,"2,851.28",Not Applicable
Department for Business Energy and Industrial Strategy,Intellectual Property Office,08/03/2023,Staff Costs,DDaT Directorate,KPMG LLP (CSL),5502582956,"2,851.28",Not Applicable
Department for Business Energy and Industrial Strategy,Intellectual Property Office,16/03/2023,Staff Costs,DDaT Directorate,KPMG LLP (CSL),5502592868,"7,412.50",Not Applicable
Department for Business Energy and Industrial Strategy,Intellectual Property Office,22/03/2023,Staff Costs,DDaT Directorate,KPMG LLP (CSL),5502592875,"7,412.50",Not Applicable
Department for Business Energy and Industrial Strategy,Intellectual Property Office,22/03/2023,Staff Costs,Finance Directorate,KPMG LLP (CSL),5502594317,798.00,Not Applicable
Department for Business Energy and Industrial Strategy,Intellectual Property Office,22/03/2023,Staff Costs,Projects,KPMG LLP (CSL),5502596832,"3,037.20",Not Applicable
Department for Business Energy and Industrial Strategy,Intellectual Property Office,28/03/2023,Staff Costs,DDaT Directorate,KPMG LLP (CSL),5502597907,"2,851.28",Not Applicable
Department for Business Energy and Industrial Strategy,Intellectual Property Office,28/03/2023,Staff Costs,DDaT Directorate,KPMG LLP (CSL),5502597917,"2,851.28",Not Applicable
Department for Business Energy and Industrial Strategy,Intellectual Property Office,28/03/2023,Staff Costs,DDaT Directorate,KPMG LLP (CSL),5502597925,"2,851.28",Not Applicable
Department for Business Energy and Industrial Strategy,Intellectual Property Office,29/03/2023,Staff Costs,DDaT Directorate,KPMG LLP (CSL),5502598293,"3,648.34",Not Applicable
Department for Business Energy and Industrial Strategy,Intellectual Property Office,28/03/2023,Staff Costs,PDTM Directorate,KPMG LLP (CSL),5502600168,"1,024.80",Not Applicable
Department for Business Energy and Industrial Strategy,Intellectual Property Office,29/03/2023,Staff Costs,PDTM Directorate,KPMG LLP (CSL),5502601319,"1,024.80",Not Applicable
Department for Business Energy and Industrial Strategy,Intellectual Property Office,01/03/2023,Staff Costs,"Rights, Policy & Enforcement Directorate",Korn Ferry UK limited,1195081792,"11,979.10",Not Applicable
Department for Business Energy and Industrial Strategy,Intellectual Property Office,28/03/2023,Staff Costs,"Rights, Policy & Enforcement Directorate",Korn Ferry UK limited,1195082661,"5,989.55",Not Applicable
Department for Business Energy and Industrial Strategy,Intellectual Property Office,15/03/2023,Supporting UK Business,PDTM Directorate,Temple Bright LLP,38341,"2,500.00",Not Applicable
Department for Business Energy and Industrial Strategy,Intellectual Property Office,30/03/2023,Staff Costs,"Rights, Policy & Enforcement Directorate",University of West of England,SN406740/1C,"-2,667.00",Not Applicable
Department for Business Energy and Industrial Strategy,Intellectual Property Office,30/03/2023,Staff Costs,"Rights, Policy & Enforcement Directorate",University of West of England,SN407090/1,"2,000.00",Not Applicable
Department for Business Energy and Industrial Strategy,Intellectual Property Office,07/03/2023,Supporting UK Business,PDTM Directorate,Walker Morris LLP,3133922,"2,500.00",Not Applicable
Department for Business Energy and Industrial Strategy,Intellectual Property Office,31/03/2023,Supporting UK Business,PDTM Directorate,Venture Proof Ltd,2385,"2,500.00",Not Applicable
Department for Business Energy and Industrial Strategy,Intellectual Property Office,29/03/2023,Accommodation,"Rights, Policy & Enforcement Directorate",Rexel UK Limited,448864055,"1,320.00",Not Applicable
Department for Business Energy and Industrial Strategy,Intellectual Property Office,06/03/2023,Information Technology,DDaT Directorate,Equal Experts UK Ltd,INV-12074,"15,000.00",Not Applicable
Department for Business Energy and Industrial Strategy,Intellectual Property Office,15/03/2023,Supporting UK Business,PDTM Directorate,Stobbs (IP) Ltd,889,"2,500.00",Not Applicable
Department for Business Energy and Industrial Strategy,Intellectual Property Office,15/03/2023,Miscellaneous Expenses General,"Rights, Policy & Enforcement Directorate","Department Business, Energy & Industrial",6.1511E+11,"76,382.76",Not Applicable
Department for Business Energy and Industrial Strategy,Intellectual Property Office,22/03/2023,Miscellaneous Expenses General,"Rights, Policy & Enforcement Directorate","Department Business, Energy & Industrial",6.1511E+11,"8,106.43",Not Applicable
Department for Business Energy and Industrial Strategy,Intellectual Property Office,28/03/2023,Legal & Hearings,PDTM Directorate,"Department Business, Energy & Industrial",6.1511E+11,"166,250.00",Not Applicable
Department for Business Energy and Industrial Strategy,Intellectual Property Office,10/03/2023,Staff Costs,"Rights, Policy & Enforcement Directorate",Linkedln Ireland,78111567793,"15,075.00",Not Applicable
Department for Business Energy and Industrial Strategy,Intellectual Property Office,29/03/2023,Supporting UK Business,PDTM Directorate,IP21 LTD,30037,"2,500.00",Not Applicable
Department for Business Energy and Industrial Strategy,Intellectual Property Office,09/03/2023,Information Technology,PDTM Directorate,Clarivate Analytics (UK) Limited,2007INV00062451,"163,801.18",Not Applicable
Department for Business Energy and Industrial Strategy,Intellectual Property Office,03/03/2023,Accommodation,"Rights, Policy & Enforcement Directorate",Shred It Limited,9505750355,"1,089.00",Not Applicable
Department for Business Energy and Industrial Strategy,Intellectual Property Office,16/03/2023,Staff Costs,"Rights, Policy & Enforcement Directorate",INVESTORS IN PEOPLE COMMUNITY INT,PSI1127,"4,320.00",Not Applicable
Department for Business Energy and Industrial Strategy,Intellectual Property Office,27/03/2023,Supporting UK Business,PDTM Directorate,AA Thornton IP LLP,187331,"5,000.00",Not Applicable
Department for Business Energy and Industrial Strategy,Intellectual Property Office,31/03/2023,Supporting UK Business,PDTM Directorate,AA Thornton IP LLP,187726,"2,500.00",Not Applicable
Department for Business Energy and Industrial Strategy,Intellectual Property Office,03/03/2023,Miscellaneous Expenses General,Strategy Directorate,PRS for Music Ltd,SINV100000004910,"18,000.00",Not Applicable
Department for Business Energy and Industrial Strategy,Intellectual Property Office,06/03/2023,Information Technology,DDaT Directorate,Zoho Corporation Limited,80040003953,"5,186.40",Not Applicable
Department for Business Energy and Industrial Strategy,Intellectual Property Office,27/03/2023,Supporting UK Business,PDTM Directorate,Gill Jennings & Every LLP,442337,"2,328.60",Not Applicable
Department for Business Energy and Industrial Strategy,Intellectual Property Office,21/03/2023,Supporting UK Business,PDTM Directorate,Archer-IP,14011,"5,000.00",Not Applicable
Department for Business Energy and Industrial Strategy,Intellectual Property Office,10/03/2023,Information Technology,DDaT Directorate,8X8 Solutions,3786468,"2,739.76",Not Applicable
Department for Business Energy and Industrial Strategy,Intellectual Property Office,14/03/2023,Supporting UK Business,PDTM Directorate,HGF Limited,726608,"2,500.00",Not Applicable
Department for Business Energy and Industrial Strategy,Intellectual Property Office,09/03/2023,Supporting UK Business,PDTM Directorate,HGF Limited,729439,"2,500.00",Not Applicable
Department for Business Energy and Industrial Strategy,Intellectual Property Office,27/03/2023,Supporting UK Business,PDTM Directorate,HGF Limited,731640,"4,896.00",Not Applicable
Department for Business Energy and Industrial Strategy,Intellectual Property Office,31/03/2023,Supporting UK Business,PDTM Directorate,HGF Limited,733211,"2,500.00",Not Applicable
Department for Business Energy and Industrial Strategy,Intellectual Property Office,09/03/2023,Supporting UK Business,PDTM Directorate,Definition IP Ltd,INV-003291,"5,000.00",Not Applicable
Department for Business Energy and Industrial Strategy,Intellectual Property Office,09/03/2023,Supporting UK Business,PDTM Directorate,Definition IP Ltd,INV-003299,"4,999.99",Not Applicable
Department for Business Energy and Industrial Strategy,Intellectual Property Office,14/03/2023,Supporting UK Business,PDTM Directorate,Definition IP Ltd,INV-003318,"2,500.00",Not Applicable
Department for Business Energy and Industrial Strategy,Intellectual Property Office,16/03/2023,Supporting UK Business,PDTM Directorate,Definition IP Ltd,INV-003325,"2,500.00",Not Applicable
Department for Business Energy and Industrial Strategy,Intellectual Property Office,14/03/2023,Telecoms,DDaT Directorate,Gamma Telecom Ltd,GA1708998,"2,532.85",Not Applicable
Department for Business Energy and Industrial Strategy,Intellectual Property Office,14/03/2023,Staff Costs,"Rights, Policy & Enforcement Directorate",Bethan Roberts,819-2023,"1,500.00",Not Applicable
Department for Business Energy and Industrial Strategy,Intellectual Property Office,22/03/2023,Staff Costs,"Rights, Policy & Enforcement Directorate",People Untapped Limited,INV-2073,"5,520.00",Not Applicable
Department for Business Energy and Industrial Strategy,Intellectual Property Office,01/03/2023,Supporting UK Business,PDTM Directorate,Barker Brettell LLP,472945,"2,500.00",Not Applicable
Department for Business Energy and Industrial Strategy,Intellectual Property Office,21/03/2023,Supporting UK Business,PDTM Directorate,Barker Brettell LLP,473059,"2,441.40",Not Applicable
Department for Business Energy and Industrial Strategy,Intellectual Property Office,21/03/2023,Supporting UK Business,PDTM Directorate,Barker Brettell LLP,473219,"2,441.40",Not Applicable
Department for Business Energy and Industrial Strategy,Intellectual Property Office,29/03/2023,Supporting UK Business,PDTM Directorate,Barker Brettell LLP,474585,"2,500.00",Not Applicable
Department for Business Energy and Industrial Strategy,Intellectual Property Office,21/03/2023,Staff Costs,PDTM Directorate,The Hub Events Ltd,INV-22/14275,"2,016.00",Not Applicable
Department for Business Energy and Industrial Strategy,Intellectual Property Office,08/03/2023,Miscellaneous Expenses General,Strategy Directorate,Economic and Social Research Council,ESRC11813,"50,000.00",Not Applicable
Department for Business Energy and Industrial Strategy,Intellectual Property Office,14/03/2023,Staff Costs,"Rights, Policy & Enforcement Directorate",Tracy Mountain,86,600.00,Not Applicable
Department for Business Energy and Industrial Strategy,Intellectual Property Office,22/03/2023,Staff Costs,"Rights, Policy & Enforcement Directorate",Tracy Mountain,87,600.00,Not Applicable
Department for Business Energy and Industrial Strategy,Intellectual Property Office,23/03/2023,Staff Costs,"Rights, Policy & Enforcement Directorate",Tracy Mountain,88,"1,200.00",Not Applicable
Department for Business Energy and Industrial Strategy,Intellectual Property Office,01/03/2023,Information Technology,DDaT Directorate,Deloitte LLP,8003303789,"264,000.00",Not Applicable
Department for Business Energy and Industrial Strategy,Intellectual Property Office,15/03/2023,Information Technology,Projects,Deloitte LLP,8003388906,"251,931.60",Not Applicable
Department for Business Energy and Industrial Strategy,Intellectual Property Office,22/03/2023,Other FA at Cost,Projects,Deloitte LLP,8003392286,"2,740.46",Not Applicable
Department for Business Energy and Industrial Strategy,Intellectual Property Office,21/03/2023,Other FA at Cost,Projects,Deloitte LLP,8003392287,"19,748.40",Not Applicable
Department for Business Energy and Industrial Strategy,Intellectual Property Office,21/03/2023,Other FA at Cost,Projects,Deloitte LLP,8003392288,"145,800.00",Not Applicable
Department for Business Energy and Industrial Strategy,Intellectual Property Office,21/03/2023,Information Technology,Projects,Deloitte LLP,8003392290,"60,480.00",Not Applicable
Department for Business Energy and Industrial Strategy,Intellectual Property Office,21/03/2023,Supporting UK Business,PDTM Directorate,Sirius IP,022023IAUPWS01,"2,500.00",Not Applicable
Department for Business Energy and Industrial Strategy,Intellectual Property Office,27/03/2023,Supporting UK Business,PDTM Directorate,Sirius IP,032023IACDTL01,"5,000.00",Not Applicable
Department for Business Energy and Industrial Strategy,Intellectual Property Office,16/03/2023,Supporting UK Business,PDTM Directorate,Sirius IP,032023IAUBGL01,"2,500.00",Not Applicable
Department for Business Energy and Industrial Strategy,Intellectual Property Office,21/03/2023,Supporting UK Business,PDTM Directorate,Reddie & Grose LLP,325944,"2,500.00",Not Applicable
Department for Business Energy and Industrial Strategy,Intellectual Property Office,01/03/2023,Pay Costs,PDTM Directorate,Alexander Mann Solutions Limited,2738682,566.28,Not Applicable
Department for Business Energy and Industrial Strategy,Intellectual Property Office,01/03/2023,Pay Costs,Projects,Alexander Mann Solutions Limited,2747880,"1,634.57",Not Applicable
Department for Business Energy and Industrial Strategy,Intellectual Property Office,06/03/2023,Pay Costs,PDTM Directorate,Alexander Mann Solutions Limited,2747881,686.28,Not Applicable
Department for Business Energy and Industrial Strategy,Intellectual Property Office,01/03/2023,Pay Costs,Projects,Alexander Mann Solutions Limited,2747882,"4,410.42",Not Applicable
Department for Business Energy and Industrial Strategy,Intellectual Property Office,01/03/2023,Pay Costs,PDTM Directorate,Alexander Mann Solutions Limited,2747883,546.94,Not Applicable
Department for Business Energy and Industrial Strategy,Intellectual Property Office,01/03/2023,Pay Costs,PDTM Directorate,Alexander Mann Solutions Limited,2747884,597.24,Not Applicable
Department for Business Energy and Industrial Strategy,Intellectual Property Office,01/03/2023,Pay Costs,PDTM Directorate,Alexander Mann Solutions Limited,2747885,517.61,Not Applicable
Department for Business Energy and Industrial Strategy,Intellectual Property Office,01/03/2023,Pay Costs,PDTM Directorate,Alexander Mann Solutions Limited,2747886,736.60,Not Applicable
Department for Business Energy and Industrial Strategy,Intellectual Property Office,01/03/2023,Pay Costs,PDTM Directorate,Alexander Mann Solutions Limited,2747887,751.52,Not Applicable
Department for Business Energy and Industrial Strategy,Intellectual Property Office,01/03/2023,Pay Costs,PDTM Directorate,Alexander Mann Solutions Limited,2747889,686.83,Not Applicable
Department for Business Energy and Industrial Strategy,Intellectual Property Office,01/03/2023,Pay Costs,DDaT Directorate,Alexander Mann Solutions Limited,2747891,"3,567.66",Not Applicable
Department for Business Energy and Industrial Strategy,Intellectual Property Office,01/03/2023,Pay Costs,PDTM Directorate,Alexander Mann Solutions Limited,2747892,736.60,Not Applicable
Department for Business Energy and Industrial Strategy,Intellectual Property Office,01/03/2023,Pay Costs,PDTM Directorate,Alexander Mann Solutions Limited,2747893,655.34,Not Applicable
Department for Business Energy and Industrial Strategy,Intellectual Property Office,01/03/2023,Pay Costs,PDTM Directorate,Alexander Mann Solutions Limited,2747894,597.24,Not Applicable
Department for Business Energy and Industrial Strategy,Intellectual Property Office,01/03/2023,Pay Costs,PDTM Directorate,Alexander Mann Solutions Limited,2747895,597.24,Not Applicable
Department for Business Energy and Industrial Strategy,Intellectual Property Office,01/03/2023,Pay Costs,PDTM Directorate,Alexander Mann Solutions Limited,2747896,736.60,Not Applicable
Department for Business Energy and Industrial Strategy,Intellectual Property Office,01/03/2023,Pay Costs,PDTM Directorate,Alexander Mann Solutions Limited,2747897,736.60,Not Applicable
Department for Business Energy and Industrial Strategy,Intellectual Property Office,01/03/2023,Pay Costs,Projects,Alexander Mann Solutions Limited,2747898,"4,311.54",Not Applicable
Department for Business Energy and Industrial Strategy,Intellectual Property Office,01/03/2023,Pay Costs,PDTM Directorate,Alexander Mann Solutions Limited,2747899,597.24,Not Applicable
Department for Business Energy and Industrial Strategy,Intellectual Property Office,01/03/2023,Pay Costs,PDTM Directorate,Alexander Mann Solutions Limited,2747900,531.36,Not Applicable
Department for Business Energy and Industrial Strategy,Intellectual Property Office,01/03/2023,Pay Costs,DDaT Directorate,Alexander Mann Solutions Limited,2747901,"3,913.56",Not Applicable
Department for Business Energy and Industrial Strategy,Intellectual Property Office,01/03/2023,Pay Costs,PDTM Directorate,Alexander Mann Solutions Limited,2747903,685.98,Not Applicable
Department for Business Energy and Industrial Strategy,Intellectual Property Office,01/03/2023,Pay Costs,DDaT Directorate,Alexander Mann Solutions Limited,2747904,"4,341.77",Not Applicable
Department for Business Energy and Industrial Strategy,Intellectual Property Office,01/03/2023,Pay Costs,DDaT Directorate,Alexander Mann Solutions Limited,2747905,"2,710.08",Not Applicable
Department for Business Energy and Industrial Strategy,Intellectual Property Office,01/03/2023,Pay Costs,PDTM Directorate,Alexander Mann Solutions Limited,2747906,736.60,Not Applicable
Department for Business Energy and Industrial Strategy,Intellectual Property Office,01/03/2023,Pay Costs,PDTM Directorate,Alexander Mann Solutions Limited,2747908,736.60,Not Applicable
Department for Business Energy and Industrial Strategy,Intellectual Property Office,01/03/2023,Pay Costs,PDTM Directorate,Alexander Mann Solutions Limited,2747909,736.60,Not Applicable
Department for Business Energy and Industrial Strategy,Intellectual Property Office,01/03/2023,Pay Costs,PDTM Directorate,Alexander Mann Solutions Limited,2747910,736.60,Not Applicable
Department for Business Energy and Industrial Strategy,Intellectual Property Office,01/03/2023,Pay Costs,PDTM Directorate,Alexander Mann Solutions Limited,2747912,597.24,Not Applicable
Department for Business Energy and Industrial Strategy,Intellectual Property Office,01/03/2023,Pay Costs,DDaT Directorate,Alexander Mann Solutions Limited,2747913,"8,180.88",Not Applicable
Department for Business Energy and Industrial Strategy,Intellectual Property Office,01/03/2023,Pay Costs,DDaT Directorate,Alexander Mann Solutions Limited,2747914,"3,811.84",Not Applicable
Department for Business Energy and Industrial Strategy,Intellectual Property Office,01/03/2023,Pay Costs,PDTM Directorate,Alexander Mann Solutions Limited,2747915,736.60,Not Applicable
Department for Business Energy and Industrial Strategy,Intellectual Property Office,01/03/2023,Pay Costs,CEO/SEC Directorate,Alexander Mann Solutions Limited,2747916,736.60,Not Applicable
Department for Business Energy and Industrial Strategy,Intellectual Property Office,01/03/2023,Pay Costs,DDaT Directorate,Alexander Mann Solutions Limited,2747917,"2,440.62",Not Applicable
Department for Business Energy and Industrial Strategy,Intellectual Property Office,01/03/2023,Pay Costs,PDTM Directorate,Alexander Mann Solutions Limited,2747918,655.34,Not Applicable
Department for Business Energy and Industrial Strategy,Intellectual Property Office,01/03/2023,Pay Costs,Projects,Alexander Mann Solutions Limited,2747919,"3,465.30",Not Applicable
Department for Business Energy and Industrial Strategy,Intellectual Property Office,01/03/2023,Pay Costs,DDaT Directorate,Alexander Mann Solutions Limited,2747920,"4,158.36",Not Applicable
Department for Business Energy and Industrial Strategy,Intellectual Property Office,01/03/2023,Pay Costs,DDaT Directorate,Alexander Mann Solutions Limited,2747921,"4,003.56",Not Applicable
Department for Business Energy and Industrial Strategy,Intellectual Property Office,01/03/2023,Pay Costs,DDaT Directorate,Alexander Mann Solutions Limited,2747922,"4,095.36",Not Applicable
Department for Business Energy and Industrial Strategy,Intellectual Property Office,01/03/2023,Pay Costs,DDaT Directorate,Alexander Mann Solutions Limited,2747923,"3,165.24",Not Applicable
Department for Business Energy and Industrial Strategy,Intellectual Property Office,01/03/2023,Pay Costs,DDaT Directorate,Alexander Mann Solutions Limited,2747924,"2,772.24",Not Applicable
Department for Business Energy and Industrial Strategy,Intellectual Property Office,01/03/2023,Pay Costs,DDaT Directorate,Alexander Mann Solutions Limited,2747925,"3,448.26",Not Applicable
Department for Business Energy and Industrial Strategy,Intellectual Property Office,01/03/2023,Pay Costs,DDaT Directorate,Alexander Mann Solutions Limited,2747926,"2,520.24",Not Applicable
Department for Business Energy and Industrial Strategy,Intellectual Property Office,01/03/2023,Pay Costs,DDaT Directorate,Alexander Mann Solutions Limited,2747927,"4,410.42",Not Applicable
Department for Business Energy and Industrial Strategy,Intellectual Property Office,01/03/2023,Pay Costs,DDaT Directorate,Alexander Mann Solutions Limited,2747928,"3,695.58",Not Applicable
Department for Business Energy and Industrial Strategy,Intellectual Property Office,01/03/2023,Pay Costs,DDaT Directorate,Alexander Mann Solutions Limited,2747929,"1,847.81",Not Applicable
Department for Business Energy and Industrial Strategy,Intellectual Property Office,01/03/2023,Pay Costs,DDaT Directorate,Alexander Mann Solutions Limited,2747930,"8,190.72",Not Applicable
Department for Business Energy and Industrial Strategy,Intellectual Property Office,01/03/2023,Pay Costs,Projects,Alexander Mann Solutions Limited,2747931,"2,699.74",Not Applicable
Department for Business Energy and Industrial Strategy,Intellectual Property Office,01/03/2023,Pay Costs,DDaT Directorate,Alexander Mann Solutions Limited,2747932,"4,090.44",Not Applicable
Department for Business Energy and Industrial Strategy,Intellectual Property Office,01/03/2023,Pay Costs,DDaT Directorate,Alexander Mann Solutions Limited,2747933,"3,024.30",Not Applicable
Department for Business Energy and Industrial Strategy,Intellectual Property Office,01/03/2023,Pay Costs,PDTM Directorate,Alexander Mann Solutions Limited,2747934,736.60,Not Applicable
Department for Business Energy and Industrial Strategy,Intellectual Property Office,01/03/2023,Pay Costs,DDaT Directorate,Alexander Mann Solutions Limited,2747935,"4,095.36",Not Applicable
Department for Business Energy and Industrial Strategy,Intellectual Property Office,01/03/2023,Pay Costs,DDaT Directorate,Alexander Mann Solutions Limited,2747936,"3,350.64",Not Applicable
Department for Business Energy and Industrial Strategy,Intellectual Property Office,01/03/2023,Pay Costs,PDTM Directorate,Alexander Mann Solutions Limited,2747938,556.20,Not Applicable
Department for Business Energy and Industrial Strategy,Intellectual Property Office,01/03/2023,Pay Costs,DDaT Directorate,Alexander Mann Solutions Limited,2747940,"4,090.44",Not Applicable
Department for Business Energy and Industrial Strategy,Intellectual Property Office,01/03/2023,Pay Costs,DDaT Directorate,Alexander Mann Solutions Limited,2747941,"3,465.30",Not Applicable
Department for Business Energy and Industrial Strategy,Intellectual Property Office,01/03/2023,Pay Costs,PDTM Directorate,Alexander Mann Solutions Limited,2747942,736.60,Not Applicable
Department for Business Energy and Industrial Strategy,Intellectual Property Office,01/03/2023,Pay Costs,PDTM Directorate,Alexander Mann Solutions Limited,2747943,685.98,Not Applicable
Department for Business Energy and Industrial Strategy,Intellectual Property Office,01/03/2023,Pay Costs,PDTM Directorate,Alexander Mann Solutions Limited,2747944,736.60,Not Applicable
Department for Business Energy and Industrial Strategy,Intellectual Property Office,01/03/2023,Pay Costs,PDTM Directorate,Alexander Mann Solutions Limited,2747945,736.60,Not Applicable
Department for Business Energy and Industrial Strategy,Intellectual Property Office,01/03/2023,Pay Costs,PDTM Directorate,Alexander Mann Solutions Limited,2747946,736.60,Not Applicable
Department for Business Energy and Industrial Strategy,Intellectual Property Office,01/03/2023,Pay Costs,Finance Directorate,Alexander Mann Solutions Limited,2747948,736.60,Not Applicable
Department for Business Energy and Industrial Strategy,Intellectual Property Office,09/03/2023,Pay Costs,PDTM Directorate,Alexander Mann Solutions Limited,2752383,597.24,Not Applicable
Department for Business Energy and Industrial Strategy,Intellectual Property Office,09/03/2023,Pay Costs,PDTM Directorate,Alexander Mann Solutions Limited,2752385,736.60,Not Applicable
Department for Business Energy and Industrial Strategy,Intellectual Property Office,09/03/2023,Pay Costs,PDTM Directorate,Alexander Mann Solutions Limited,2752386,781.39,Not Applicable
Department for Business Energy and Industrial Strategy,Intellectual Property Office,07/03/2023,Pay Costs,PDTM Directorate,Alexander Mann Solutions Limited,2752387,668.87,Not Applicable
Department for Business Energy and Industrial Strategy,Intellectual Property Office,09/03/2023,Pay Costs,PDTM Directorate,Alexander Mann Solutions Limited,2752388,671.89,Not Applicable
Department for Business Energy and Industrial Strategy,Intellectual Property Office,09/03/2023,Pay Costs,DDaT Directorate,Alexander Mann Solutions Limited,2752390,"2,140.60",Not Applicable
Department for Business Energy and Industrial Strategy,Intellectual Property Office,07/03/2023,Pay Costs,PDTM Directorate,Alexander Mann Solutions Limited,2752391,773.13,Not Applicable
Department for Business Energy and Industrial Strategy,Intellectual Property Office,09/03/2023,Pay Costs,PDTM Directorate,Alexander Mann Solutions Limited,2752392,655.34,Not Applicable
Department for Business Energy and Industrial Strategy,Intellectual Property Office,09/03/2023,Pay Costs,PDTM Directorate,Alexander Mann Solutions Limited,2752393,597.24,Not Applicable
Department for Business Energy and Industrial Strategy,Intellectual Property Office,09/03/2023,Pay Costs,PDTM Directorate,Alexander Mann Solutions Limited,2752394,597.24,Not Applicable
Department for Business Energy and Industrial Strategy,Intellectual Property Office,09/03/2023,Pay Costs,PDTM Directorate,Alexander Mann Solutions Limited,2752395,736.60,Not Applicable
Department for Business Energy and Industrial Strategy,Intellectual Property Office,09/03/2023,Pay Costs,PDTM Directorate,Alexander Mann Solutions Limited,2752396,736.60,Not Applicable
Department for Business Energy and Industrial Strategy,Intellectual Property Office,09/03/2023,Pay Costs,Projects,Alexander Mann Solutions Limited,2752397,"4,311.54",Not Applicable
Department for Business Energy and Industrial Strategy,Intellectual Property Office,09/03/2023,Pay Costs,PDTM Directorate,Alexander Mann Solutions Limited,2752398,736.60,Not Applicable
Department for Business Energy and Industrial Strategy,Intellectual Property Office,09/03/2023,Pay Costs,PDTM Directorate,Alexander Mann Solutions Limited,2752399,531.36,Not Applicable
Department for Business Energy and Industrial Strategy,Intellectual Property Office,09/03/2023,Pay Costs,DDaT Directorate,Alexander Mann Solutions Limited,2752400,"2,795.40",Not Applicable
Department for Business Energy and Industrial Strategy,Intellectual Property Office,08/03/2023,Pay Costs,PDTM Directorate,Alexander Mann Solutions Limited,2752401,"1,021.13",Not Applicable
Department for Business Energy and Industrial Strategy,Intellectual Property Office,08/03/2023,Pay Costs,PDTM Directorate,Alexander Mann Solutions Limited,2752402,"1,021.13",Not Applicable
Department for Business Energy and Industrial Strategy,Intellectual Property Office,09/03/2023,Pay Costs,PDTM Directorate,Alexander Mann Solutions Limited,2752403,736.60,Not Applicable
Department for Business Energy and Industrial Strategy,Intellectual Property Office,09/03/2023,Pay Costs,PDTM Directorate,Alexander Mann Solutions Limited,2752405,736.60,Not Applicable
Department for Business Energy and Industrial Strategy,Intellectual Property Office,09/03/2023,Pay Costs,PDTM Directorate,Alexander Mann Solutions Limited,2752406,736.60,Not Applicable
Department for Business Energy and Industrial Strategy,Intellectual Property Office,09/03/2023,Pay Costs,PDTM Directorate,Alexander Mann Solutions Limited,2752407,736.60,Not Applicable
Department for Business Energy and Industrial Strategy,Intellectual Property Office,09/03/2023,Pay Costs,PDTM Directorate,Alexander Mann Solutions Limited,2752409,"1,473.19",Not Applicable
Department for Business Energy and Industrial Strategy,Intellectual Property Office,09/03/2023,Pay Costs,PDTM Directorate,Alexander Mann Solutions Limited,2752410,736.60,Not Applicable
Department for Business Energy and Industrial Strategy,Intellectual Property Office,09/03/2023,Pay Costs,PDTM Directorate,Alexander Mann Solutions Limited,2752411,736.60,Not Applicable
Department for Business Energy and Industrial Strategy,Intellectual Property Office,09/03/2023,Pay Costs,CEO/SEC Directorate,Alexander Mann Solutions Limited,2752412,736.60,Not Applicable
Department for Business Energy and Industrial Strategy,Intellectual Property Office,09/03/2023,Pay Costs,DDaT Directorate,Alexander Mann Solutions Limited,2752413,"2,440.62",Not Applicable
Department for Business Energy and Industrial Strategy,Intellectual Property Office,09/03/2023,Pay Costs,PDTM Directorate,Alexander Mann Solutions Limited,2752414,655.34,Not Applicable
Department for Business Energy and Industrial Strategy,Intellectual Property Office,09/03/2023,Pay Costs,Projects,Alexander Mann Solutions Limited,2752415,"3,465.30",Not Applicable
Department for Business Energy and Industrial Strategy,Intellectual Property Office,09/03/2023,Pay Costs,"Rights, Policy & Enforcement Directorate",Alexander Mann Solutions Limited,2752416,739.36,Not Applicable
Department for Business Energy and Industrial Strategy,Intellectual Property Office,09/03/2023,Pay Costs,DDaT Directorate,Alexander Mann Solutions Limited,2752417,"4,158.36",Not Applicable
Department for Business Energy and Industrial Strategy,Intellectual Property Office,09/03/2023,Pay Costs,DDaT Directorate,Alexander Mann Solutions Limited,2752418,"4,003.56",Not Applicable
Department for Business Energy and Industrial Strategy,Intellectual Property Office,09/03/2023,Pay Costs,DDaT Directorate,Alexander Mann Solutions Limited,2752419,"8,505.72",Not Applicable
Department for Business Energy and Industrial Strategy,Intellectual Property Office,09/03/2023,Pay Costs,Projects,Alexander Mann Solutions Limited,2752420,"4,095.36",Not Applicable
Department for Business Energy and Industrial Strategy,Intellectual Property Office,09/03/2023,Pay Costs,DDaT Directorate,Alexander Mann Solutions Limited,2752421,"7,560.72",Not Applicable
Department for Business Energy and Industrial Strategy,Intellectual Property Office,09/03/2023,Pay Costs,DDaT Directorate,Alexander Mann Solutions Limited,2752422,"3,165.24",Not Applicable
Department for Business Energy and Industrial Strategy,Intellectual Property Office,09/03/2023,Pay Costs,DDaT Directorate,Alexander Mann Solutions Limited,2752423,"2,520.24",Not Applicable
Department for Business Energy and Industrial Strategy,Intellectual Property Office,09/03/2023,Pay Costs,DDaT Directorate,Alexander Mann Solutions Limited,2752424,"4,410.42",Not Applicable
Department for Business Energy and Industrial Strategy,Intellectual Property Office,09/03/2023,Pay Costs,Projects,Alexander Mann Solutions Limited,2752425,"2,999.70",Not Applicable
Department for Business Energy and Industrial Strategy,Intellectual Property Office,09/03/2023,Pay Costs,DDaT Directorate,Alexander Mann Solutions Limited,2752426,"4,090.44",Not Applicable
Department for Business Energy and Industrial Strategy,Intellectual Property Office,09/03/2023,Pay Costs,DDaT Directorate,Alexander Mann Solutions Limited,2752427,"3,465.30",Not Applicable
Department for Business Energy and Industrial Strategy,Intellectual Property Office,09/03/2023,Pay Costs,PDTM Directorate,Alexander Mann Solutions Limited,2752428,736.60,Not Applicable
Department for Business Energy and Industrial Strategy,Intellectual Property Office,09/03/2023,Pay Costs,DDaT Directorate,Alexander Mann Solutions Limited,2752429,"4,095.36",Not Applicable
Department for Business Energy and Industrial Strategy,Intellectual Property Office,09/03/2023,Pay Costs,DDaT Directorate,Alexander Mann Solutions Limited,2752430,"4,095.36",Not Applicable
Department for Business Energy and Industrial Strategy,Intellectual Property Office,09/03/2023,Pay Costs,DDaT Directorate,Alexander Mann Solutions Limited,2752431,"3,350.64",Not Applicable
Department for Business Energy and Industrial Strategy,Intellectual Property Office,09/03/2023,Pay Costs,PDTM Directorate,Alexander Mann Solutions Limited,2752432,736.60,Not Applicable
Department for Business Energy and Industrial Strategy,Intellectual Property Office,09/03/2023,Pay Costs,DDaT Directorate,Alexander Mann Solutions Limited,2752433,"5,040.48",Not Applicable
Department for Business Energy and Industrial Strategy,Intellectual Property Office,09/03/2023,Pay Costs,DDaT Directorate,Alexander Mann Solutions Limited,2752434,"4,090.44",Not Applicable
Department for Business Energy and Industrial Strategy,Intellectual Property Office,09/03/2023,Pay Costs,DDaT Directorate,Alexander Mann Solutions Limited,2752435,"3,465.30",Not Applicable
Department for Business Energy and Industrial Strategy,Intellectual Property Office,09/03/2023,Pay Costs,PDTM Directorate,Alexander Mann Solutions Limited,2752436,736.60,Not Applicable
Department for Business Energy and Industrial Strategy,Intellectual Property Office,09/03/2023,Pay Costs,PDTM Directorate,Alexander Mann Solutions Limited,2752437,685.98,Not Applicable
Department for Business Energy and Industrial Strategy,Intellectual Property Office,09/03/2023,Pay Costs,PDTM Directorate,Alexander Mann Solutions Limited,2752438,736.60,Not Applicable
Department for Business Energy and Industrial Strategy,Intellectual Property Office,09/03/2023,Pay Costs,PDTM Directorate,Alexander Mann Solutions Limited,2752439,736.60,Not Applicable
Department for Business Energy and Industrial Strategy,Intellectual Property Office,09/03/2023,Pay Costs,Projects,Alexander Mann Solutions Limited,2752442,"4,410.42",Not Applicable
Department for Business Energy and Industrial Strategy,Intellectual Property Office,09/03/2023,Pay Costs,Finance Directorate,Alexander Mann Solutions Limited,2752443,736.60,Not Applicable
Department for Business Energy and Industrial Strategy,Intellectual Property Office,09/03/2023,Pay Costs,Finance Directorate,Alexander Mann Solutions Limited,2752444,746.56,Not Applicable
Department for Business Energy and Industrial Strategy,Intellectual Property Office,09/03/2023,Pay Costs,PDTM Directorate,Alexander Mann Solutions Limited,2752446,736.60,Not Applicable
Department for Business Energy and Industrial Strategy,Intellectual Property Office,09/03/2023,Pay Costs,PDTM Directorate,Alexander Mann Solutions Limited,2752447,736.60,Not Applicable
Department for Business Energy and Industrial Strategy,Intellectual Property Office,16/03/2023,Pay Costs,Projects,Alexander Mann Solutions Limited,2756801,628.68,Not Applicable
Department for Business Energy and Industrial Strategy,Intellectual Property Office,16/03/2023,Pay Costs,PDTM Directorate,Alexander Mann Solutions Limited,2756804,736.60,Not Applicable
Department for Business Energy and Industrial Strategy,Intellectual Property Office,16/03/2023,Pay Costs,PDTM Directorate,Alexander Mann Solutions Limited,2756805,592.26,Not Applicable
Department for Business Energy and Industrial Strategy,Intellectual Property Office,31/03/2023,Pay Costs,PDTM Directorate,Alexander Mann Solutions Limited,2756807,"1,399.56",Not Applicable
Department for Business Energy and Industrial Strategy,Intellectual Property Office,16/03/2023,Pay Costs,PDTM Directorate,Alexander Mann Solutions Limited,2756809,681.85,Not Applicable
Department for Business Energy and Industrial Strategy,Intellectual Property Office,16/03/2023,Pay Costs,DDaT Directorate,Alexander Mann Solutions Limited,2756811,"3,389.28",Not Applicable
Department for Business Energy and Industrial Strategy,Intellectual Property Office,16/03/2023,Pay Costs,PDTM Directorate,Alexander Mann Solutions Limited,2756812,736.60,Not Applicable
Department for Business Energy and Industrial Strategy,Intellectual Property Office,16/03/2023,Pay Costs,PDTM Directorate,Alexander Mann Solutions Limited,2756813,655.34,Not Applicable
Department for Business Energy and Industrial Strategy,Intellectual Property Office,16/03/2023,Pay Costs,PDTM Directorate,Alexander Mann Solutions Limited,2756814,597.24,Not Applicable
Department for Business Energy and Industrial Strategy,Intellectual Property Office,16/03/2023,Pay Costs,PDTM Directorate,Alexander Mann Solutions Limited,2756815,736.60,Not Applicable
Department for Business Energy and Industrial Strategy,Intellectual Property Office,16/03/2023,Pay Costs,PDTM Directorate,Alexander Mann Solutions Limited,2756816,736.60,Not Applicable
Department for Business Energy and Industrial Strategy,Intellectual Property Office,16/03/2023,Pay Costs,PDTM Directorate,Alexander Mann Solutions Limited,2756817,597.24,Not Applicable
Department for Business Energy and Industrial Strategy,Intellectual Property Office,16/03/2023,Pay Costs,Projects,Alexander Mann Solutions Limited,2756818,"4,311.54",Not Applicable
Department for Business Energy and Industrial Strategy,Intellectual Property Office,16/03/2023,Pay Costs,PDTM Directorate,Alexander Mann Solutions Limited,2756819,736.60,Not Applicable
Department for Business Energy and Industrial Strategy,Intellectual Property Office,16/03/2023,Pay Costs,PDTM Directorate,Alexander Mann Solutions Limited,2756820,531.36,Not Applicable
Department for Business Energy and Industrial Strategy,Intellectual Property Office,16/03/2023,Pay Costs,PDTM Directorate,Alexander Mann Solutions Limited,2756821,685.98,Not Applicable
Department for Business Energy and Industrial Strategy,Intellectual Property Office,16/03/2023,Pay Costs,PDTM Directorate,Alexander Mann Solutions Limited,2756822,685.98,Not Applicable
Department for Business Energy and Industrial Strategy,Intellectual Property Office,16/03/2023,Pay Costs,DDaT Directorate,Alexander Mann Solutions Limited,2756823,"2,251.28",Not Applicable
Department for Business Energy and Industrial Strategy,Intellectual Property Office,16/03/2023,Pay Costs,DDaT Directorate,Alexander Mann Solutions Limited,2756824,"2,710.08",Not Applicable
Department for Business Energy and Industrial Strategy,Intellectual Property Office,16/03/2023,Pay Costs,PDTM Directorate,Alexander Mann Solutions Limited,2756825,736.60,Not Applicable
Department for Business Energy and Industrial Strategy,Intellectual Property Office,16/03/2023,Pay Costs,PDTM Directorate,Alexander Mann Solutions Limited,2756827,736.60,Not Applicable
Department for Business Energy and Industrial Strategy,Intellectual Property Office,16/03/2023,Pay Costs,PDTM Directorate,Alexander Mann Solutions Limited,2756828,736.60,Not Applicable
Department for Business Energy and Industrial Strategy,Intellectual Property Office,16/03/2023,Pay Costs,PDTM Directorate,Alexander Mann Solutions Limited,2756829,736.60,Not Applicable
Department for Business Energy and Industrial Strategy,Intellectual Property Office,16/03/2023,Pay Costs,PDTM Directorate,Alexander Mann Solutions Limited,2756830,522.59,Not Applicable
Department for Business Energy and Industrial Strategy,Intellectual Property Office,16/03/2023,Pay Costs,PDTM Directorate,Alexander Mann Solutions Limited,2756831,736.60,Not Applicable
Department for Business Energy and Industrial Strategy,Intellectual Property Office,16/03/2023,Pay Costs,PDTM Directorate,Alexander Mann Solutions Limited,2756832,736.60,Not Applicable
Department for Business Energy and Industrial Strategy,Intellectual Property Office,16/03/2023,Pay Costs,CEO/SEC Directorate,Alexander Mann Solutions Limited,2756833,736.60,Not Applicable
Department for Business Energy and Industrial Strategy,Intellectual Property Office,16/03/2023,Pay Costs,DDaT Directorate,Alexander Mann Solutions Limited,2756834,"2,440.62",Not Applicable
Department for Business Energy and Industrial Strategy,Intellectual Property Office,16/03/2023,Pay Costs,PDTM Directorate,Alexander Mann Solutions Limited,2756835,655.34,Not Applicable
Department for Business Energy and Industrial Strategy,Intellectual Property Office,16/03/2023,Pay Costs,Projects,Alexander Mann Solutions Limited,2756836,"3,465.30",Not Applicable
Department for Business Energy and Industrial Strategy,Intellectual Property Office,16/03/2023,Pay Costs,DDaT Directorate,Alexander Mann Solutions Limited,2756837,"4,158.36",Not Applicable
Department for Business Energy and Industrial Strategy,Intellectual Property Office,16/03/2023,Pay Costs,DDaT Directorate,Alexander Mann Solutions Limited,2756838,"4,003.56",Not Applicable
Department for Business Energy and Industrial Strategy,Intellectual Property Office,16/03/2023,Pay Costs,DDaT Directorate,Alexander Mann Solutions Limited,2756839,"4,252.86",Not Applicable
Department for Business Energy and Industrial Strategy,Intellectual Property Office,16/03/2023,Pay Costs,DDaT Directorate,Alexander Mann Solutions Limited,2756840,"4,095.36",Not Applicable
Department for Business Energy and Industrial Strategy,Intellectual Property Office,16/03/2023,Pay Costs,DDaT Directorate,Alexander Mann Solutions Limited,2756841,"3,780.36",Not Applicable
Department for Business Energy and Industrial Strategy,Intellectual Property Office,16/03/2023,Pay Costs,DDaT Directorate,Alexander Mann Solutions Limited,2756842,"2,772.24",Not Applicable
Department for Business Energy and Industrial Strategy,Intellectual Property Office,16/03/2023,Pay Costs,DDaT Directorate,Alexander Mann Solutions Limited,2756843,"3,103.44",Not Applicable
Department for Business Energy and Industrial Strategy,Intellectual Property Office,16/03/2023,Pay Costs,DDaT Directorate,Alexander Mann Solutions Limited,2756844,"2,520.24",Not Applicable
Department for Business Energy and Industrial Strategy,Intellectual Property Office,16/03/2023,Pay Costs,DDaT Directorate,Alexander Mann Solutions Limited,2756845,"4,410.42",Not Applicable
Department for Business Energy and Industrial Strategy,Intellectual Property Office,16/03/2023,Pay Costs,DDaT Directorate,Alexander Mann Solutions Limited,2756846,"7,391.16",Not Applicable
Department for Business Energy and Industrial Strategy,Intellectual Property Office,16/03/2023,Pay Costs,DDaT Directorate,Alexander Mann Solutions Limited,2756847,"4,095.36",Not Applicable
Department for Business Energy and Industrial Strategy,Intellectual Property Office,16/03/2023,Pay Costs,Projects,Alexander Mann Solutions Limited,2756848,"2,999.70",Not Applicable
Department for Business Energy and Industrial Strategy,Intellectual Property Office,16/03/2023,Pay Costs,DDaT Directorate,Alexander Mann Solutions Limited,2756849,"4,090.44",Not Applicable
Department for Business Energy and Industrial Strategy,Intellectual Property Office,16/03/2023,Pay Costs,DDaT Directorate,Alexander Mann Solutions Limited,2756850,"6,048.60",Not Applicable
Department for Business Energy and Industrial Strategy,Intellectual Property Office,16/03/2023,Pay Costs,DDaT Directorate,Alexander Mann Solutions Limited,2756851,"3,465.30",Not Applicable
Department for Business Energy and Industrial Strategy,Intellectual Property Office,16/03/2023,Pay Costs,PDTM Directorate,Alexander Mann Solutions Limited,2756852,736.60,Not Applicable
Department for Business Energy and Industrial Strategy,Intellectual Property Office,16/03/2023,Pay Costs,DDaT Directorate,Alexander Mann Solutions Limited,2756853,"4,095.36",Not Applicable
Department for Business Energy and Industrial Strategy,Intellectual Property Office,16/03/2023,Pay Costs,DDaT Directorate,Alexander Mann Solutions Limited,2756854,"3,350.64",Not Applicable
Department for Business Energy and Industrial Strategy,Intellectual Property Office,16/03/2023,Pay Costs,PDTM Directorate,Alexander Mann Solutions Limited,2756855,726.65,Not Applicable
Department for Business Energy and Industrial Strategy,Intellectual Property Office,16/03/2023,Pay Costs,DDaT Directorate,Alexander Mann Solutions Limited,2756856,"4,090.44",Not Applicable
Department for Business Energy and Industrial Strategy,Intellectual Property Office,16/03/2023,Pay Costs,PDTM Directorate,Alexander Mann Solutions Limited,2756857,736.60,Not Applicable
Department for Business Energy and Industrial Strategy,Intellectual Property Office,16/03/2023,Pay Costs,PDTM Directorate,Alexander Mann Solutions Limited,2756858,685.98,Not Applicable
Department for Business Energy and Industrial Strategy,Intellectual Property Office,16/03/2023,Pay Costs,PDTM Directorate,Alexander Mann Solutions Limited,2756859,736.60,Not Applicable
Department for Business Energy and Industrial Strategy,Intellectual Property Office,16/03/2023,Pay Costs,PDTM Directorate,Alexander Mann Solutions Limited,2756860,736.60,Not Applicable
Department for Business Energy and Industrial Strategy,Intellectual Property Office,16/03/2023,Pay Costs,PDTM Directorate,Alexander Mann Solutions Limited,2756861,597.24,Not Applicable
Department for Business Energy and Industrial Strategy,Intellectual Property Office,16/03/2023,Pay Costs,"Rights, Policy & Enforcement Directorate",Alexander Mann Solutions Limited,2756862,"1,006.82",Not Applicable
Department for Business Energy and Industrial Strategy,Intellectual Property Office,16/03/2023,Pay Costs,Projects,Alexander Mann Solutions Limited,2756863,"4,410.42",Not Applicable
Department for Business Energy and Industrial Strategy,Intellectual Property Office,16/03/2023,Pay Costs,DDaT Directorate,Alexander Mann Solutions Limited,2756864,"3,465.30",Not Applicable
Department for Business Energy and Industrial Strategy,Intellectual Property Office,16/03/2023,Pay Costs,Finance Directorate,Alexander Mann Solutions Limited,2756865,736.60,Not Applicable
Department for Business Energy and Industrial Strategy,Intellectual Property Office,16/03/2023,Pay Costs,Finance Directorate,Alexander Mann Solutions Limited,2756866,736.60,Not Applicable
Department for Business Energy and Industrial Strategy,Intellectual Property Office,16/03/2023,Pay Costs,PDTM Directorate,Alexander Mann Solutions Limited,2756867,764.20,Not Applicable
Department for Business Energy and Industrial Strategy,Intellectual Property Office,16/03/2023,Pay Costs,PDTM Directorate,Alexander Mann Solutions Limited,2756868,764.20,Not Applicable
Department for Business Energy and Industrial Strategy,Intellectual Property Office,22/03/2023,Pay Costs,PDTM Directorate,Alexander Mann Solutions Limited,2761942,685.98,Not Applicable
Department for Business Energy and Industrial Strategy,Intellectual Property Office,22/03/2023,Pay Costs,PDTM Directorate,Alexander Mann Solutions Limited,2761943,597.24,Not Applicable
Department for Business Energy and Industrial Strategy,Intellectual Property Office,22/03/2023,Pay Costs,PDTM Directorate,Alexander Mann Solutions Limited,2761944,736.60,Not Applicable
Department for Business Energy and Industrial Strategy,Intellectual Property Office,22/03/2023,Pay Costs,PDTM Directorate,Alexander Mann Solutions Limited,2761945,736.60,Not Applicable
Department for Business Energy and Industrial Strategy,Intellectual Property Office,22/03/2023,Pay Costs,PDTM Directorate,Alexander Mann Solutions Limited,2761946,746.56,Not Applicable
Department for Business Energy and Industrial Strategy,Intellectual Property Office,22/03/2023,Pay Costs,PDTM Directorate,Alexander Mann Solutions Limited,2761948,691.80,Not Applicable
Department for Business Energy and Industrial Strategy,Intellectual Property Office,22/03/2023,Pay Costs,DDaT Directorate,Alexander Mann Solutions Limited,2761950,"3,567.66",Not Applicable
Department for Business Energy and Industrial Strategy,Intellectual Property Office,22/03/2023,Pay Costs,PDTM Directorate,Alexander Mann Solutions Limited,2761951,736.60,Not Applicable
Department for Business Energy and Industrial Strategy,Intellectual Property Office,22/03/2023,Pay Costs,PDTM Directorate,Alexander Mann Solutions Limited,2761952,655.34,Not Applicable
Department for Business Energy and Industrial Strategy,Intellectual Property Office,22/03/2023,Pay Costs,PDTM Directorate,Alexander Mann Solutions Limited,2761953,597.24,Not Applicable
Department for Business Energy and Industrial Strategy,Intellectual Property Office,22/03/2023,Pay Costs,PDTM Directorate,Alexander Mann Solutions Limited,2761954,736.60,Not Applicable
Department for Business Energy and Industrial Strategy,Intellectual Property Office,22/03/2023,Pay Costs,PDTM Directorate,Alexander Mann Solutions Limited,2761955,736.60,Not Applicable
Department for Business Energy and Industrial Strategy,Intellectual Property Office,22/03/2023,Pay Costs,PDTM Directorate,Alexander Mann Solutions Limited,2761956,587.29,Not Applicable
Department for Business Energy and Industrial Strategy,Intellectual Property Office,22/03/2023,Pay Costs,Projects,Alexander Mann Solutions Limited,2761957,"4,311.54",Not Applicable
Department for Business Energy and Industrial Strategy,Intellectual Property Office,22/03/2023,Pay Costs,PDTM Directorate,Alexander Mann Solutions Limited,2761958,736.60,Not Applicable
Department for Business Energy and Industrial Strategy,Intellectual Property Office,22/03/2023,Pay Costs,PDTM Directorate,Alexander Mann Solutions Limited,2761959,531.36,Not Applicable
Department for Business Energy and Industrial Strategy,Intellectual Property Office,22/03/2023,Pay Costs,DDaT Directorate,Alexander Mann Solutions Limited,2761960,"5,590.80",Not Applicable
Department for Business Energy and Industrial Strategy,Intellectual Property Office,22/03/2023,Pay Costs,PDTM Directorate,Alexander Mann Solutions Limited,2761961,685.98,Not Applicable
Department for Business Energy and Industrial Strategy,Intellectual Property Office,22/03/2023,Pay Costs,PDTM Directorate,Alexander Mann Solutions Limited,2761962,685.98,Not Applicable
Department for Business Energy and Industrial Strategy,Intellectual Property Office,22/03/2023,Pay Costs,DDaT Directorate,Alexander Mann Solutions Limited,2761963,"6,593.05",Not Applicable
Department for Business Energy and Industrial Strategy,Intellectual Property Office,22/03/2023,Pay Costs,DDaT Directorate,Alexander Mann Solutions Limited,2761964,"2,710.08",Not Applicable
Department for Business Energy and Industrial Strategy,Intellectual Property Office,22/03/2023,Pay Costs,PDTM Directorate,Alexander Mann Solutions Limited,2761965,736.60,Not Applicable
Department for Business Energy and Industrial Strategy,Intellectual Property Office,22/03/2023,Pay Costs,PDTM Directorate,Alexander Mann Solutions Limited,2761967,736.60,Not Applicable
Department for Business Energy and Industrial Strategy,Intellectual Property Office,22/03/2023,Pay Costs,PDTM Directorate,Alexander Mann Solutions Limited,2761968,736.60,Not Applicable
Department for Business Energy and Industrial Strategy,Intellectual Property Office,22/03/2023,Pay Costs,PDTM Directorate,Alexander Mann Solutions Limited,2761969,736.60,Not Applicable
Department for Business Energy and Industrial Strategy,Intellectual Property Office,22/03/2023,Pay Costs,PDTM Directorate,Alexander Mann Solutions Limited,2761970,587.29,Not Applicable
Department for Business Energy and Industrial Strategy,Intellectual Property Office,22/03/2023,Pay Costs,PDTM Directorate,Alexander Mann Solutions Limited,2761971,736.60,Not Applicable
Department for Business Energy and Industrial Strategy,Intellectual Property Office,22/03/2023,Pay Costs,PDTM Directorate,Alexander Mann Solutions Limited,2761972,736.60,Not Applicable
Department for Business Energy and Industrial Strategy,Intellectual Property Office,22/03/2023,Pay Costs,PDTM Directorate,Alexander Mann Solutions Limited,2761973,736.60,Not Applicable
Department for Business Energy and Industrial Strategy,Intellectual Property Office,22/03/2023,Pay Costs,PDTM Directorate,Alexander Mann Solutions Limited,2761974,736.60,Not Applicable
Department for Business Energy and Industrial Strategy,Intellectual Property Office,22/03/2023,Pay Costs,CEO/SEC Directorate,Alexander Mann Solutions Limited,2761975,736.60,Not Applicable
Department for Business Energy and Industrial Strategy,Intellectual Property Office,22/03/2023,Pay Costs,DDaT Directorate,Alexander Mann Solutions Limited,2761976,"2,440.62",Not Applicable
Department for Business Energy and Industrial Strategy,Intellectual Property Office,22/03/2023,Pay Costs,PDTM Directorate,Alexander Mann Solutions Limited,2761977,655.34,Not Applicable
Department for Business Energy and Industrial Strategy,Intellectual Property Office,22/03/2023,Pay Costs,Projects,Alexander Mann Solutions Limited,2761978,"3,465.30",Not Applicable
Department for Business Energy and Industrial Strategy,Intellectual Property Office,22/03/2023,Pay Costs,DDaT Directorate,Alexander Mann Solutions Limited,2761979,"3,326.69",Not Applicable
Department for Business Energy and Industrial Strategy,Intellectual Property Office,22/03/2023,Pay Costs,DDaT Directorate,Alexander Mann Solutions Limited,2761980,"4,003.56",Not Applicable
Department for Business Energy and Industrial Strategy,Intellectual Property Office,22/03/2023,Pay Costs,DDaT Directorate,Alexander Mann Solutions Limited,2761981,"4,252.86",Not Applicable
Department for Business Energy and Industrial Strategy,Intellectual Property Office,22/03/2023,Pay Costs,DDaT Directorate,Alexander Mann Solutions Limited,2761982,"4,095.36",Not Applicable
Department for Business Energy and Industrial Strategy,Intellectual Property Office,22/03/2023,Pay Costs,DDaT Directorate,Alexander Mann Solutions Limited,2761983,"3,780.36",Not Applicable
Department for Business Energy and Industrial Strategy,Intellectual Property Office,22/03/2023,Pay Costs,DDaT Directorate,Alexander Mann Solutions Limited,2761984,"6,330.48",Not Applicable
Department for Business Energy and Industrial Strategy,Intellectual Property Office,22/03/2023,Pay Costs,DDaT Directorate,Alexander Mann Solutions Limited,2761985,"2,772.24",Not Applicable
Department for Business Energy and Industrial Strategy,Intellectual Property Office,22/03/2023,Pay Costs,DDaT Directorate,Alexander Mann Solutions Limited,2761986,"6,896.52",Not Applicable
Department for Business Energy and Industrial Strategy,Intellectual Property Office,22/03/2023,Pay Costs,DDaT Directorate,Alexander Mann Solutions Limited,2761987,"2,520.24",Not Applicable
Department for Business Energy and Industrial Strategy,Intellectual Property Office,22/03/2023,Pay Costs,DDaT Directorate,Alexander Mann Solutions Limited,2761988,"4,410.42",Not Applicable
Department for Business Energy and Industrial Strategy,Intellectual Property Office,22/03/2023,Pay Costs,DDaT Directorate,Alexander Mann Solutions Limited,2761989,"3,695.58",Not Applicable
Department for Business Energy and Industrial Strategy,Intellectual Property Office,22/03/2023,Pay Costs,DDaT Directorate,Alexander Mann Solutions Limited,2761990,"3,695.62",Not Applicable
Department for Business Energy and Industrial Strategy,Intellectual Property Office,22/03/2023,Pay Costs,Projects,Alexander Mann Solutions Limited,2761991,"2,999.70",Not Applicable
Department for Business Energy and Industrial Strategy,Intellectual Property Office,22/03/2023,Pay Costs,DDaT Directorate,Alexander Mann Solutions Limited,2761992,"4,090.44",Not Applicable
Department for Business Energy and Industrial Strategy,Intellectual Property Office,22/03/2023,Pay Costs,DDaT Directorate,Alexander Mann Solutions Limited,2761993,"3,024.30",Not Applicable
Department for Business Energy and Industrial Strategy,Intellectual Property Office,22/03/2023,Pay Costs,DDaT Directorate,Alexander Mann Solutions Limited,2761994,"3,465.30",Not Applicable
Department for Business Energy and Industrial Strategy,Intellectual Property Office,22/03/2023,Pay Costs,PDTM Directorate,Alexander Mann Solutions Limited,2761995,736.60,Not Applicable
Department for Business Energy and Industrial Strategy,Intellectual Property Office,22/03/2023,Pay Costs,DDaT Directorate,Alexander Mann Solutions Limited,2761996,"3,276.29",Not Applicable
Department for Business Energy and Industrial Strategy,Intellectual Property Office,22/03/2023,Pay Costs,DDaT Directorate,Alexander Mann Solutions Limited,2761997,"8,190.72",Not Applicable
Department for Business Energy and Industrial Strategy,Intellectual Property Office,22/03/2023,Pay Costs,DDaT Directorate,Alexander Mann Solutions Limited,2761998,"3,350.64",Not Applicable
Department for Business Energy and Industrial Strategy,Intellectual Property Office,22/03/2023,Pay Costs,PDTM Directorate,Alexander Mann Solutions Limited,2761999,736.60,Not Applicable
Department for Business Energy and Industrial Strategy,Intellectual Property Office,22/03/2023,Pay Costs,DDaT Directorate,Alexander Mann Solutions Limited,2762000,"5,040.48",Not Applicable
Department for Business Energy and Industrial Strategy,Intellectual Property Office,22/03/2023,Pay Costs,DDaT Directorate,Alexander Mann Solutions Limited,2762001,"4,090.44",Not Applicable
Department for Business Energy and Industrial Strategy,Intellectual Property Office,22/03/2023,Pay Costs,DDaT Directorate,Alexander Mann Solutions Limited,2762002,"1,386.12",Not Applicable
Department for Business Energy and Industrial Strategy,Intellectual Property Office,22/03/2023,Pay Costs,PDTM Directorate,Alexander Mann Solutions Limited,2762004,685.98,Not Applicable
Department for Business Energy and Industrial Strategy,Intellectual Property Office,22/03/2023,Pay Costs,PDTM Directorate,Alexander Mann Solutions Limited,2762005,736.60,Not Applicable
Department for Business Energy and Industrial Strategy,Intellectual Property Office,22/03/2023,Pay Costs,PDTM Directorate,Alexander Mann Solutions Limited,2762006,736.60,Not Applicable
Department for Business Energy and Industrial Strategy,Intellectual Property Office,22/03/2023,Pay Costs,PDTM Directorate,Alexander Mann Solutions Limited,2762007,736.60,Not Applicable
Department for Business Energy and Industrial Strategy,Intellectual Property Office,22/03/2023,Pay Costs,"Rights, Policy & Enforcement Directorate",Alexander Mann Solutions Limited,2762008,977.87,Not Applicable
Department for Business Energy and Industrial Strategy,Intellectual Property Office,23/03/2023,Pay Costs,Projects,Alexander Mann Solutions Limited,2762009,"4,410.42",Not Applicable
Department for Business Energy and Industrial Strategy,Intellectual Property Office,22/03/2023,Pay Costs,DDaT Directorate,Alexander Mann Solutions Limited,2762010,"6,930.60",Not Applicable
Department for Business Energy and Industrial Strategy,Intellectual Property Office,22/03/2023,Pay Costs,Finance Directorate,Alexander Mann Solutions Limited,2762011,726.65,Not Applicable
Department for Business Energy and Industrial Strategy,Intellectual Property Office,22/03/2023,Pay Costs,Finance Directorate,Alexander Mann Solutions Limited,2762012,736.60,Not Applicable
Department for Business Energy and Industrial Strategy,Intellectual Property Office,22/03/2023,Pay Costs,PDTM Directorate,Alexander Mann Solutions Limited,2762013,736.60,Not Applicable
Department for Business Energy and Industrial Strategy,Intellectual Property Office,22/03/2023,Pay Costs,PDTM Directorate,Alexander Mann Solutions Limited,2762014,736.60,Not Applicable
Department for Business Energy and Industrial Strategy,Intellectual Property Office,29/03/2023,Pay Costs,PDTM Directorate,Alexander Mann Solutions Limited,2766650,736.60,Not Applicable
Department for Business Energy and Industrial Strategy,Intellectual Property Office,29/03/2023,Pay Costs,PDTM Directorate,Alexander Mann Solutions Limited,2766651,"1,956.71",Not Applicable
Department for Business Energy and Industrial Strategy,Intellectual Property Office,29/03/2023,Pay Costs,PDTM Directorate,Alexander Mann Solutions Limited,2766652,"1,349.46",Not Applicable
Department for Business Energy and Industrial Strategy,Intellectual Property Office,29/03/2023,Pay Costs,PDTM Directorate,Alexander Mann Solutions Limited,2766653,"1,577.73",Not Applicable
Department for Business Energy and Industrial Strategy,Intellectual Property Office,29/03/2023,Pay Costs,PDTM Directorate,Alexander Mann Solutions Limited,2766654,"1,624.71",Not Applicable
Department for Business Energy and Industrial Strategy,Intellectual Property Office,29/03/2023,Pay Costs,PDTM Directorate,Alexander Mann Solutions Limited,2766655,"1,747.73",Not Applicable
Department for Business Energy and Industrial Strategy,Intellectual Property Office,29/03/2023,Pay Costs,PDTM Directorate,Alexander Mann Solutions Limited,2766656,685.98,Not Applicable
Department for Business Energy and Industrial Strategy,Intellectual Property Office,29/03/2023,Pay Costs,PDTM Directorate,Alexander Mann Solutions Limited,2766657,"1,068.72",Not Applicable
Department for Business Energy and Industrial Strategy,Intellectual Property Office,29/03/2023,Pay Costs,PDTM Directorate,Alexander Mann Solutions Limited,2766658,"1,545.86",Not Applicable
Department for Business Energy and Industrial Strategy,Intellectual Property Office,29/03/2023,Pay Costs,PDTM Directorate,Alexander Mann Solutions Limited,2766659,"1,054.30",Not Applicable
Department for Business Energy and Industrial Strategy,Intellectual Property Office,29/03/2023,Pay Costs,DDaT Directorate,Alexander Mann Solutions Limited,2766660,"3,567.66",Not Applicable
Department for Business Energy and Industrial Strategy,Intellectual Property Office,29/03/2023,Pay Costs,PDTM Directorate,Alexander Mann Solutions Limited,2766661,"1,685.25",Not Applicable
Department for Business Energy and Industrial Strategy,Intellectual Property Office,29/03/2023,Pay Costs,PDTM Directorate,Alexander Mann Solutions Limited,2766662,"1,733.29",Not Applicable
Department for Business Energy and Industrial Strategy,Intellectual Property Office,29/03/2023,Pay Costs,PDTM Directorate,Alexander Mann Solutions Limited,2766663,"1,344.86",Not Applicable
Department for Business Energy and Industrial Strategy,Intellectual Property Office,29/03/2023,Pay Costs,PDTM Directorate,Alexander Mann Solutions Limited,2766664,"1,656.24",Not Applicable
Department for Business Energy and Industrial Strategy,Intellectual Property Office,29/03/2023,Pay Costs,PDTM Directorate,Alexander Mann Solutions Limited,2766665,982.55,Not Applicable
Department for Business Energy and Industrial Strategy,Intellectual Property Office,29/03/2023,Pay Costs,PDTM Directorate,Alexander Mann Solutions Limited,2766666,"1,604.64",Not Applicable
Department for Business Energy and Industrial Strategy,Intellectual Property Office,29/03/2023,Pay Costs,PDTM Directorate,Alexander Mann Solutions Limited,2766667,"1,453.92",Not Applicable
Department for Business Energy and Industrial Strategy,Intellectual Property Office,29/03/2023,Pay Costs,PDTM Directorate,Alexander Mann Solutions Limited,2766668,"1,455.10",Not Applicable
Department for Business Energy and Industrial Strategy,Intellectual Property Office,29/03/2023,Pay Costs,DDaT Directorate,Alexander Mann Solutions Limited,2766669,"2,795.40",Not Applicable
Department for Business Energy and Industrial Strategy,Intellectual Property Office,29/03/2023,Pay Costs,PDTM Directorate,Alexander Mann Solutions Limited,2766670,"2,150.54",Not Applicable
Department for Business Energy and Industrial Strategy,Intellectual Property Office,29/03/2023,Pay Costs,PDTM Directorate,Alexander Mann Solutions Limited,2766671,"1,981.75",Not Applicable
Department for Business Energy and Industrial Strategy,Intellectual Property Office,29/03/2023,Pay Costs,PDTM Directorate,Alexander Mann Solutions Limited,2766672,991.26,Not Applicable
Department for Business Energy and Industrial Strategy,Intellectual Property Office,29/03/2023,Pay Costs,PDTM Directorate,Alexander Mann Solutions Limited,2766673,719.76,Not Applicable
Department for Business Energy and Industrial Strategy,Intellectual Property Office,28/03/2023,Pay Costs,PDTM Directorate,Alexander Mann Solutions Limited,2766674,"1,690.14",Not Applicable
Department for Business Energy and Industrial Strategy,Intellectual Property Office,28/03/2023,Pay Costs,PDTM Directorate,Alexander Mann Solutions Limited,2766675,"1,733.48",Not Applicable
Department for Business Energy and Industrial Strategy,Intellectual Property Office,28/03/2023,Pay Costs,PDTM Directorate,Alexander Mann Solutions Limited,2766676,"1,502.27",Not Applicable
Department for Business Energy and Industrial Strategy,Intellectual Property Office,28/03/2023,Pay Costs,PDTM Directorate,Alexander Mann Solutions Limited,2766677,"1,285.49",Not Applicable
Department for Business Energy and Industrial Strategy,Intellectual Property Office,28/03/2023,Pay Costs,PDTM Directorate,Alexander Mann Solutions Limited,2766678,"1,671.92",Not Applicable
Department for Business Energy and Industrial Strategy,Intellectual Property Office,28/03/2023,Pay Costs,PDTM Directorate,Alexander Mann Solutions Limited,2766679,"1,634.34",Not Applicable
Department for Business Energy and Industrial Strategy,Intellectual Property Office,28/03/2023,Pay Costs,PDTM Directorate,Alexander Mann Solutions Limited,2766680,823.15,Not Applicable
Department for Business Energy and Industrial Strategy,Intellectual Property Office,28/03/2023,Pay Costs,PDTM Directorate,Alexander Mann Solutions Limited,2766681,"1,655.80",Not Applicable
Department for Business Energy and Industrial Strategy,Intellectual Property Office,28/03/2023,Pay Costs,PDTM Directorate,Alexander Mann Solutions Limited,2766682,"1,717.02",Not Applicable
Department for Business Energy and Industrial Strategy,Intellectual Property Office,28/03/2023,Pay Costs,CEO/SEC Directorate,Alexander Mann Solutions Limited,2766683,"1,650.05",Not Applicable
Department for Business Energy and Industrial Strategy,Intellectual Property Office,28/03/2023,Pay Costs,DDaT Directorate,Alexander Mann Solutions Limited,2766684,"2,440.62",Not Applicable
Department for Business Energy and Industrial Strategy,Intellectual Property Office,28/03/2023,Pay Costs,PDTM Directorate,Alexander Mann Solutions Limited,2766685,"1,705.80",Not Applicable
Department for Business Energy and Industrial Strategy,Intellectual Property Office,28/03/2023,Pay Costs,DDaT Directorate,Alexander Mann Solutions Limited,2766686,"3,742.52",Not Applicable
Department for Business Energy and Industrial Strategy,Intellectual Property Office,28/03/2023,Pay Costs,DDaT Directorate,Alexander Mann Solutions Limited,2766687,"4,003.56",Not Applicable
Department for Business Energy and Industrial Strategy,Intellectual Property Office,28/03/2023,Pay Costs,DDaT Directorate,Alexander Mann Solutions Limited,2766688,"4,252.86",Not Applicable
Department for Business Energy and Industrial Strategy,Intellectual Property Office,28/03/2023,Pay Costs,DDaT Directorate,Alexander Mann Solutions Limited,2766689,"4,095.36",Not Applicable
Department for Business Energy and Industrial Strategy,Intellectual Property Office,28/03/2023,Pay Costs,DDaT Directorate,Alexander Mann Solutions Limited,2766690,"3,780.36",Not Applicable
Department for Business Energy and Industrial Strategy,Intellectual Property Office,28/03/2023,Pay Costs,DDaT Directorate,Alexander Mann Solutions Limited,2766691,"2,772.24",Not Applicable
Department for Business Energy and Industrial Strategy,Intellectual Property Office,28/03/2023,Pay Costs,DDaT Directorate,Alexander Mann Solutions Limited,2766692,"2,520.24",Not Applicable
Department for Business Energy and Industrial Strategy,Intellectual Property Office,28/03/2023,Pay Costs,DDaT Directorate,Alexander Mann Solutions Limited,2766693,"4,410.42",Not Applicable
Department for Business Energy and Industrial Strategy,Intellectual Property Office,28/03/2023,Pay Costs,DDaT Directorate,Alexander Mann Solutions Limited,2766694,"3,695.62",Not Applicable
Department for Business Energy and Industrial Strategy,Intellectual Property Office,28/03/2023,Pay Costs,DDaT Directorate,Alexander Mann Solutions Limited,2766695,"8,190.72",Not Applicable
Department for Business Energy and Industrial Strategy,Intellectual Property Office,28/03/2023,Pay Costs,Projects,Alexander Mann Solutions Limited,2766696,"2,999.70",Not Applicable
Department for Business Energy and Industrial Strategy,Intellectual Property Office,28/03/2023,Pay Costs,DDaT Directorate,Alexander Mann Solutions Limited,2766697,"4,090.44",Not Applicable
Department for Business Energy and Industrial Strategy,Intellectual Property Office,28/03/2023,Pay Costs,DDaT Directorate,Alexander Mann Solutions Limited,2766698,"3,024.30",Not Applicable
Department for Business Energy and Industrial Strategy,Intellectual Property Office,28/03/2023,Pay Costs,DDaT Directorate,Alexander Mann Solutions Limited,2766699,"3,465.30",Not Applicable
Department for Business Energy and Industrial Strategy,Intellectual Property Office,29/03/2023,Pay Costs,PDTM Directorate,Alexander Mann Solutions Limited,2766700,982.77,Not Applicable
Department for Business Energy and Industrial Strategy,Intellectual Property Office,28/03/2023,Pay Costs,DDaT Directorate,Alexander Mann Solutions Limited,2766701,"4,095.36",Not Applicable
Department for Business Energy and Industrial Strategy,Intellectual Property Office,29/03/2023,Pay Costs,DDaT Directorate,Alexander Mann Solutions Limited,2766702,"4,095.36",Not Applicable
Department for Business Energy and Industrial Strategy,Intellectual Property Office,29/03/2023,Pay Costs,DDaT Directorate,Alexander Mann Solutions Limited,2766703,"3,350.64",Not Applicable
Department for Business Energy and Industrial Strategy,Intellectual Property Office,28/03/2023,Pay Costs,PDTM Directorate,Alexander Mann Solutions Limited,2766704,991.85,Not Applicable
Department for Business Energy and Industrial Strategy,Intellectual Property Office,28/03/2023,Pay Costs,DDaT Directorate,Alexander Mann Solutions Limited,2766706,"5,040.48",Not Applicable
Department for Business Energy and Industrial Strategy,Intellectual Property Office,28/03/2023,Pay Costs,DDaT Directorate,Alexander Mann Solutions Limited,2766709,"4,090.44",Not Applicable
Department for Business Energy and Industrial Strategy,Intellectual Property Office,28/03/2023,Pay Costs,DDaT Directorate,Alexander Mann Solutions Limited,2766710,"3,465.30",Not Applicable
Department for Business Energy and Industrial Strategy,Intellectual Property Office,28/03/2023,Pay Costs,PDTM Directorate,Alexander Mann Solutions Limited,2766711,882.68,Not Applicable
Department for Business Energy and Industrial Strategy,Intellectual Property Office,28/03/2023,Pay Costs,PDTM Directorate,Alexander Mann Solutions Limited,2766712,934.43,Not Applicable
Department for Business Energy and Industrial Strategy,Intellectual Property Office,28/03/2023,Pay Costs,PDTM Directorate,Alexander Mann Solutions Limited,2766713,"1,732.74",Not Applicable
Department for Business Energy and Industrial Strategy,Intellectual Property Office,28/03/2023,Pay Costs,PDTM Directorate,Alexander Mann Solutions Limited,2766715,711.25,Not Applicable
Department for Business Energy and Industrial Strategy,Intellectual Property Office,28/03/2023,Pay Costs,"Rights, Policy & Enforcement Directorate",Alexander Mann Solutions Limited,2766716,851.98,Not Applicable
Department for Business Energy and Industrial Strategy,Intellectual Property Office,28/03/2023,Pay Costs,Projects,Alexander Mann Solutions Limited,2766717,"4,410.42",Not Applicable
Department for Business Energy and Industrial Strategy,Intellectual Property Office,28/03/2023,Pay Costs,Finance Directorate,Alexander Mann Solutions Limited,2766718,886.26,Not Applicable
Department for Business Energy and Industrial Strategy,Intellectual Property Office,28/03/2023,Pay Costs,Finance Directorate,Alexander Mann Solutions Limited,2766719,"1,520.77",Not Applicable
Department for Business Energy and Industrial Strategy,Intellectual Property Office,28/03/2023,Pay Costs,PDTM Directorate,Alexander Mann Solutions Limited,2766720,"1,374.83",Not Applicable
Department for Business Energy and Industrial Strategy,Intellectual Property Office,28/03/2023,Pay Costs,PDTM Directorate,Alexander Mann Solutions Limited,2766721,736.60,Not Applicable
Department for Business Energy and Industrial Strategy,Intellectual Property Office,28/03/2023,Pay Costs,PDTM Directorate,Alexander Mann Solutions Limited,2766722,736.60,Not Applicable
Department for Business Energy and Industrial Strategy,Intellectual Property Office,28/03/2023,Pay Costs,DDaT Directorate,Alexander Mann Solutions Limited,2766723,"3,465.30",Not Applicable
Department for Business Energy and Industrial Strategy,Intellectual Property Office,28/03/2023,Pay Costs,"Rights, Policy & Enforcement Directorate",Alexander Mann Solutions Limited,2766724,736.60,Not Applicable
Department for Business Energy and Industrial Strategy,Intellectual Property Office,28/03/2023,Pay Costs,PDTM Directorate,Alexander Mann Solutions Limited,2766725,736.60,Not Applicable
Department for Business Energy and Industrial Strategy,Intellectual Property Office,09/03/2023,Pay Costs,"Rights, Policy & Enforcement Directorate",Alexander Mann Solutions Limited,38112,"-1,505.28",Not Applicable
Department for Business Energy and Industrial Strategy,Intellectual Property Office,01/03/2023,Supporting UK Business,PDTM Directorate,Secerna LLP,23218,"2,500.00",Not Applicable
Department for Business Energy and Industrial Strategy,Intellectual Property Office,01/03/2023,Supporting UK Business,PDTM Directorate,JA Kemp,943038,"2,500.00",Not Applicable
Department for Business Energy and Industrial Strategy,Intellectual Property Office,14/03/2023,Information Technology,DDaT Directorate,Cyberis Limited,INV02607,"9,600.00",Not Applicable
Department for Business Energy and Industrial Strategy,Intellectual Property Office,14/03/2023,Information Technology,DDaT Directorate,Cyberis Limited,INV02609,"2,400.00",Not Applicable
Department for Business Energy and Industrial Strategy,Intellectual Property Office,20/03/2023,Information Technology,DDaT Directorate,Cyberis Limited,INV02615,"1,200.00",Not Applicable
Department for Business Energy and Industrial Strategy,Intellectual Property Office,20/03/2023,Information Technology,DDaT Directorate,Cyberis Limited,INV02616,"1,200.00",Not Applicable
Department for Business Energy and Industrial Strategy,Intellectual Property Office,22/03/2023,Supporting UK Business,PDTM Directorate,Harper James Limited,INV-41366,"2,500.00",Not Applicable
Department for Business Energy and Industrial Strategy,Intellectual Property Office,14/03/2023,Staff Costs,"Rights, Policy & Enforcement Directorate",Eliesha Training Ltd,23357,"1,782.00",Not Applicable
Department for Business Energy and Industrial Strategy,Intellectual Property Office,06/03/2023,Staff Costs,"Rights, Policy & Enforcement Directorate",Eliesha Training Ltd,23470,"2,376.00",Not Applicable
Department for Business Energy and Industrial Strategy,Intellectual Property Office,28/03/2023,Staff Costs,"Rights, Policy & Enforcement Directorate",Eliesha Training Ltd,23542,"1,782.00",Not Applicable
Department for Business Energy and Industrial Strategy,Intellectual Property Office,28/03/2023,Staff Costs,"Rights, Policy & Enforcement Directorate",Eliesha Training Ltd,23543,"1,074.00",Not Applicable
Department for Business Energy and Industrial Strategy,Intellectual Property Office,28/03/2023,Miscellaneous Expenses General,"Rights, Policy & Enforcement Directorate",IP Inclusive Management,INV-0130,"3,000.00",Not Applicable
Department for Business Energy and Industrial Strategy,Intellectual Property Office,14/03/2023,Information Technology,Projects,Empyrean Digital Ltd,EMP-704,"17,374.50",Not Applicable
Department for Business Energy and Industrial Strategy,Intellectual Property Office,01/03/2023,Pay Costs,Projects,Empyrean Digital Ltd,EMP-706,"17,768.40",Not Applicable
Department for Business Energy and Industrial Strategy,Intellectual Property Office,15/03/2023,Pay Costs,Projects,Empyrean Digital Ltd,EMP-721,"262,615.20",Not Applicable
Department for Business Energy and Industrial Strategy,Intellectual Property Office,15/03/2023,Pay Costs,Projects,Empyrean Digital Ltd,EMP-722,"17,768.40",Not Applicable
Department for Business Energy and Industrial Strategy,Intellectual Property Office,15/03/2023,Information Technology,Projects,Empyrean Digital Ltd,EMP-723,"17,374.50",Not Applicable
Department for Business Energy and Industrial Strategy,Intellectual Property Office,24/03/2023,Accommodation,"Rights, Policy & Enforcement Directorate",Government Property Agency,00000001/23145,784.01,Not Applicable
Department for Business Energy and Industrial Strategy,Intellectual Property Office,31/03/2023,Miscellaneous Expenses General,Strategy Directorate,AudienceNet,INV-1698,"60,000.00",Not Applicable
Department for Business Energy and Industrial Strategy,Intellectual Property Office,21/03/2023,Marketing & Publicity,Strategy Directorate,Axis12 Limited,INV-4552,"1,303.20",Not Applicable
Department for Business Energy and Industrial Strategy,Intellectual Property Office,03/03/2023,Marketing & Publicity,Strategy Directorate,Axis12 Limited,INV-4977,"1,303.20",Not Applicable
Department for Business Energy and Industrial Strategy,Intellectual Property Office,21/03/2023,Miscellaneous Expenses General,Business & International Policy Directorate,Axis12 Limited,INV-4997,"6,360.00",Not Applicable
Department for Business Energy and Industrial Strategy,Intellectual Property Office,30/03/2023,Marketing & Publicity,Strategy Directorate,Axis12 Limited,INV-5023,"1,303.20",Not Applicable
Department for Business Energy and Industrial Strategy,Intellectual Property Office,01/03/2023,Supporting UK Business,PDTM Directorate,Adamson Jones IP Limited,25248,"4,980.00",Not Applicable
Department for Business Energy and Industrial Strategy,Intellectual Property Office,27/03/2023,Supporting UK Business,PDTM Directorate,Adamson Jones IP Limited,25392,"2,500.00",Not Applicable
Department for Business Energy and Industrial Strategy,Intellectual Property Office,29/03/2023,Supporting UK Business,PDTM Directorate,McDaniel & Co,22892-IC00010001,"2,500.00",Not Applicable
Department for Business Energy and Industrial Strategy,Intellectual Property Office,21/03/2023,Supporting UK Business,PDTM Directorate,S William Wallace & Co,1256,"5,000.00",Not Applicable
Department for Business Energy and Industrial Strategy,Intellectual Property Office,01/03/2023,Miscellaneous Expenses General,Business & International Policy Directorate,GBSLEP,INV-000041,"30,000.00",Not Applicable
Department for Business Energy and Industrial Strategy,Intellectual Property Office,28/03/2023,Marketing & Publicity,Strategy Directorate,AIMediaData Limited,INV62765,"11,310.04",Not Applicable
Department for Business Energy and Industrial Strategy,Intellectual Property Office,31/03/2023,Supporting UK Business,"Rights, Policy & Enforcement Directorate",Chartered Trading Standards Institute,CN-00222,"-44,982.00",Not Applicable
Department for Business Energy and Industrial Strategy,Intellectual Property Office,31/03/2023,Supporting UK Business,"Rights, Policy & Enforcement Directorate",Chartered Trading Standards Institute,INV-004742,"44,982.00",Not Applicable
Department for Business Energy and Industrial Strategy,Intellectual Property Office,31/03/2023,Supporting UK Business,"Rights, Policy & Enforcement Directorate",Chartered Trading Standards Institute,INV-004757,"20,952.84",Not Applicable
Department for Business Energy and Industrial Strategy,Intellectual Property Office,31/03/2023,Information Technology,DDaT Directorate,Cloudflare Inc,CI-150947,"8,068.44",Not Applicable
Department for Business Energy and Industrial Strategy,Intellectual Property Office,31/03/2023,Information Technology,DDaT Directorate,Cloudflare Inc,CI-150947,"1,823.41",Not Applicable
Department for Business Energy and Industrial Strategy,Intellectual Property Office,31/03/2023,Information Technology,DDaT Directorate,Cloudflare Inc,CI-158428,"8,068.44",Not Applicable
Department for Business Energy and Industrial Strategy,Intellectual Property Office,31/03/2023,Information Technology,DDaT Directorate,Cloudflare Inc,CI-158428,"1,823.41",Not Applicable
Department for Business Energy and Industrial Strategy,Intellectual Property Office,31/03/2023,Information Technology,DDaT Directorate,Cloudflare Inc,CI-172090,"10,312.06",Not Applicable
Department for Business Energy and Industrial Strategy,Intellectual Property Office,31/03/2023,Information Technology,DDaT Directorate,Cloudflare Inc,CI-172649,"10,312.06",Not Applicable
Department for Business Energy and Industrial Strategy,Intellectual Property Office,28/03/2023,Supporting UK Business,"Rights, Policy & Enforcement Directorate",British Association for Screen Entertain,10903,"96,000.00",Not Applicable
Department for Business Energy and Industrial Strategy,Intellectual Property Office,09/03/2023,Supporting UK Business,PDTM Directorate,Panoramix Limited,INV-0902,"5,000.00",Not Applicable
Department for Business Energy and Industrial Strategy,Intellectual Property Office,27/03/2023,Supporting UK Business,PDTM Directorate,Panoramix Limited,INV-0947,"5,000.00",Not Applicable
Department for Business Energy and Industrial Strategy,Intellectual Property Office,10/03/2023,Supporting UK Business,PDTM Directorate,Panoramix Limited,INV-0952,"2,500.00",Not Applicable
Department for Business Energy and Industrial Strategy,Intellectual Property Office,22/03/2023,Supporting UK Business,PDTM Directorate,Panoramix Limited,INV-0967,"2,500.00",Not Applicable
Department for Business Energy and Industrial Strategy,Intellectual Property Office,03/03/2023,Supporting UK Business,PDTM Directorate,Claines Limited (T/A The Intellectual Pr,INV-1356,"2,500.00",Not Applicable
Department for Business Energy and Industrial Strategy,Intellectual Property Office,08/03/2023,Pay Costs,Projects,IRG Advisors T/A Odgers Interim,869921,"34,488.00",Not Applicable
Department for Business Energy and Industrial Strategy,Intellectual Property Office,30/03/2023,Supporting UK Business,PDTM Directorate,Berwins Solicitors,100145,"2,500.00",Not Applicable
Department for Business Energy and Industrial Strategy,Intellectual Property Office,07/03/2023,Other FA at Cost,DDaT Directorate,Avoira Limited,OP/I0000098325,"12,611.94",Not Applicable
Department for Business Energy and Industrial Strategy,Intellectual Property Office,21/03/2023,Supporting UK Business,"Rights, Policy & Enforcement Directorate",GNB Communications,1269,"1,300.00",Not Applicable
Department for Business Energy and Industrial Strategy,Intellectual Property Office,10/03/2023,Supporting UK Business,PDTM Directorate,Concept IP Services Limited,INV-19274,"2,500.00",Not Applicable
Department for Business Energy and Industrial Strategy,Intellectual Property Office,29/03/2023,Supporting UK Business,PDTM Directorate,Spinnaker IP Limited,INV-0462,"2,500.00",Not Applicable
Department for Business Energy and Industrial Strategy,Intellectual Property Office,03/03/2023,Supporting UK Business,PDTM Directorate,Womble Bond Dickinson (UK) LLP,3698929,"2,500.00",Not Applicable
Department for Business Energy and Industrial Strategy,Intellectual Property Office,27/03/2023,Supporting UK Business,PDTM Directorate,Womble Bond Dickinson (UK) LLP,3701420,"2,500.00",Not Applicable
Department for Business Energy and Industrial Strategy,Intellectual Property Office,02/03/2023,Miscellaneous Expenses General,Projects,Womble Bond Dickinson (UK) LLP,3701448,"4,082.16",Not Applicable
Department for Business Energy and Industrial Strategy,Intellectual Property Office,14/03/2023,Supporting UK Business,PDTM Directorate,Womble Bond Dickinson (UK) LLP,3703513,"2,500.00",Not Applicable
Department for Business Energy and Industrial Strategy,Intellectual Property Office,03/03/2023,Supporting UK Business,PDTM Directorate,Cleveland Scott York LLP,202009,"2,500.00",Not Applicable
Department for Business Energy and Industrial Strategy,Intellectual Property Office,15/03/2023,Information Technology,DDaT Directorate,Hewlett Packard International Bank DAC,4.00901E+11,"17,859.29",Not Applicable
Department for Business Energy and Industrial Strategy,Intellectual Property Office,14/03/2023,Information Technology,DDaT Directorate,Hewlett Packard International Bank DAC,4.00901E+11,"18,113.07",Not Applicable
Department for Business Energy and Industrial Strategy,Intellectual Property Office,14/03/2023,Information Technology,DDaT Directorate,Hewlett Packard International Bank DAC,4.00901E+11,"5,928.45",Not Applicable
Department for Business Energy and Industrial Strategy,Intellectual Property Office,14/03/2023,Information Technology,DDaT Directorate,Hewlett Packard International Bank DAC,4.00901E+11,"4,594.90",Not Applicable
Department for Business Energy and Industrial Strategy,Intellectual Property Office,28/03/2023,Miscellaneous Expenses General,"Rights, Policy & Enforcement Directorate",Sharon Bodman,6,525.00,Not Applicable
Department for Business Energy and Industrial Strategy,Intellectual Property Office,02/03/2023,Pay Costs,DDaT Directorate,Allen Lane LTD,1241829,"4,380.00",Not Applicable
Department for Business Energy and Industrial Strategy,Intellectual Property Office,09/03/2023,Pay Costs,DDaT Directorate,Allen Lane LTD,1242321,"4,380.00",Not Applicable
Department for Business Energy and Industrial Strategy,Intellectual Property Office,21/03/2023,Pay Costs,DDaT Directorate,Allen Lane LTD,1242762,"4,380.00",Not Applicable
Department for Business Energy and Industrial Strategy,Intellectual Property Office,23/03/2023,Pay Costs,DDaT Directorate,Allen Lane LTD,1243385,"4,380.00",Not Applicable
Department for Business Energy and Industrial Strategy,Intellectual Property Office,30/03/2023,Pay Costs,DDaT Directorate,Allen Lane LTD,1243627,"28,711.92",Not Applicable
Department for Business Energy and Industrial Strategy,Intellectual Property Office,30/03/2023,Pay Costs,DDaT Directorate,Allen Lane LTD,1243628,"4,380.00",Not Applicable
Department for Business Energy and Industrial Strategy,Intellectual Property Office,15/03/2023,Information Technology,DDaT Directorate,Barrier Networks Ltd,CN-003014,"-2,520.00",Not Applicable
Department for Business Energy and Industrial Strategy,Intellectual Property Office,15/03/2023,Information Technology,DDaT Directorate,Barrier Networks Ltd,INV-003000,"2,520.00",Not Applicable
Department for Business Energy and Industrial Strategy,Intellectual Property Office,13/03/2023,Supporting UK Business,PDTM Directorate,Strachan IP Ltd,INV-0295,"2,500.00",Not Applicable
Department for Business Energy and Industrial Strategy,Intellectual Property Office,28/03/2023,Supporting UK Business,PDTM Directorate,Strachan IP Ltd,INV-0299,"4,548.00",Not Applicable
Department for Business Energy and Industrial Strategy,Intellectual Property Office,14/03/2023,Information Technology,Projects,NTT DATA UK Limited,4023966,"276,490.80",Not Applicable
Department for Business Energy and Industrial Strategy,Intellectual Property Office,17/03/2023,Information Technology,Projects,NTT DATA UK Limited,4024289,"134,458.80",Not Applicable
Department for Business Energy and Industrial Strategy,Intellectual Property Office,21/03/2023,Information Technology,Projects,NTT DATA UK Limited,4024322,"247,137.60",Not Applicable
Department for Business Energy and Industrial Strategy,Intellectual Property Office,24/03/2023,Information Technology,Projects,NTT DATA UK Limited,4024420,"124,988.40",Not Applicable
Department for Business Energy and Industrial Strategy,Intellectual Property Office,17/03/2023,Information Technology,Projects,NTT DATA UK Limited,9004955,"-134,458.80",Not Applicable
Department for Business Energy and Industrial Strategy,Intellectual Property Office,10/03/2023,Supporting UK Business,PDTM Directorate,Mathys & Squire Consulting Ltd,INV-11456,"2,500.00",Not Applicable
Department for Business Energy and Industrial Strategy,Intellectual Property Office,22/03/2023,Supporting UK Business,PDTM Directorate,GWIP Ltd t/a Grey Wolf IP,1734,"2,500.00",Not Applicable
Department for Business Energy and Industrial Strategy,Intellectual Property Office,31/03/2023,Other FA at Cost,DDaT Directorate,Teqex Ltd,INV-29831,"1,131.86",Not Applicable
Department for Business Energy and Industrial Strategy,Intellectual Property Office,29/03/2023,Other FA at Cost,DDaT Directorate,Vohkus Limited,IN30904079,"7,506.85",Not Applicable
Department for Business Energy and Industrial Strategy,Intellectual Property Office,29/03/2023,Other FA at Cost,DDaT Directorate,Vohkus Limited,IN30904147,637.68,Not Applicable
Department for Business Energy and Industrial Strategy,Intellectual Property Office,21/03/2023,Legal & Hearings,PDTM Directorate,Bristows LLP,209743,"2,880.00",Not Applicable
Department for Business Energy and Industrial Strategy,Intellectual Property Office,29/03/2023,Misc Expenses Finance,Finance Directorate,Worldpay,238342885,"199,449.02",Not Applicable
Department for Business Energy and Industrial Strategy,Intellectual Property Office,29/03/2023,Misc Expenses Finance,Finance Directorate,Worldpay,242402558,"146,942.61",Not Applicable
Department for Business Energy and Industrial Strategy,Intellectual Property Office,29/03/2023,Misc Expenses Finance,Finance Directorate,Worldpay,246360668,"180,049.56",Not Applicable
Department for Business Energy and Industrial Strategy,Intellectual Property Office,21/03/2023,Staff Costs,DDaT Directorate,Personal expenses,UK01-2023000088-,"7,194.00",Not Applicable
Department for Business Energy and Industrial Strategy,Intellectual Property Office,02/03/2023,Other FA at Cost,DDaT Directorate,Kingsfield Computer Products Ltd,115752,"45,936.96",Not Applicable
Department for Business Energy and Industrial Strategy,Intellectual Property Office,22/03/2023,Other FA at Cost,DDaT Directorate,Kingsfield Computer Products Ltd,116064,566.40,Not Applicable
Department for Business Energy and Industrial Strategy,Intellectual Property Office,23/03/2023,Legal & Hearings,PDTM Directorate,Anna Edwards-Stuart,55634,600.00,Not Applicable
Department for Business Energy and Industrial Strategy,Intellectual Property Office,24/03/2023,Pay Costs,DDaT Directorate,Talent International Holdings PTY Limite,64687,"14,400.00",Not Applicable
Department for Business Energy and Industrial Strategy,Intellectual Property Office,06/03/2023,Pay Costs,DDaT Directorate,Talent International Holdings PTY Limite,64688,"27,360.00",Not Applicable
Department for Business Energy and Industrial Strategy,Intellectual Property Office,10/03/2023,Pay Costs,DDaT Directorate,Talent International Holdings PTY Limite,64689,"10,800.00",Not Applicable
Department for Business Energy and Industrial Strategy,Intellectual Property Office,06/03/2023,Pay Costs,Projects,Talent International Holdings PTY Limite,64690,"17,352.00",Not Applicable
Department for Business Energy and Industrial Strategy,Intellectual Property Office,13/03/2023,Pay Costs,"Rights, Policy & Enforcement Directorate",Edenred,1128383,"15,080.00",Not Applicable
Department for Business Energy and Industrial Strategy,Intellectual Property Office,13/03/2023,Supporting UK Business,PDTM Directorate,Edenred,1128383,550.00,Not Applicable
Department for Business Energy and Industrial Strategy,Intellectual Property Office,23/03/2023,Legal & Hearings,PDTM Directorate,Mills and Reeve LLP,194710,"4,741.93",Not Applicable
Department for Business Energy and Industrial Strategy,Intellectual Property Office,09/03/2023,Accommodation,"Rights, Policy & Enforcement Directorate",TotalEnergies Gas & Power,291888393-23,"5,945.68",Not Applicable
Department for Business Energy and Industrial Strategy,Intellectual Property Office,17/03/2023,Accommodation,"Rights, Policy & Enforcement Directorate",TotalEnergies Gas & Power,295082200-23,"1,669.90",Not Applicable
Department for Business Energy and Industrial Strategy,Intellectual Property Office,24/03/2023,Accommodation,"Rights, Policy & Enforcement Directorate",TotalEnergies Gas & Power,295331570-23,"4,317.84",Not Applicable
Department for Business Energy and Industrial Strategy,Intellectual Property Office,15/03/2023,Staff Costs,"Rights, Policy & Enforcement Directorate",University of Westminster,22128746,"1,252.00",Not Applicable
Department for Business Energy and Industrial Strategy,Intellectual Property Office,15/03/2023,Staff Costs,"Rights, Policy & Enforcement Directorate",University of Westminster,22130863,"-1,252.00",Not Applicable
Department for Business Energy and Industrial Strategy,Intellectual Property Office,10/03/2023,Marketing & Publicity,PDTM Directorate,Evening Standard Limited,59439,"1,944.00",Not Applicable
Department for Business Energy and Industrial Strategy,Intellectual Property Office,03/03/2023,Marketing & Publicity,PDTM Directorate,Evening Standard Limited,59558,"4,200.00",Not Applicable
Department for Business Energy and Industrial Strategy,Intellectual Property Office,15/03/2023,Accommodation,"Rights, Policy & Enforcement Directorate",Style Door Systems,M17624,864.00,Not Applicable
Department for Business Energy and Industrial Strategy,Intellectual Property Office,31/03/2023,Supporting UK Business,PDTM Directorate,MW Trademarks,9267,"2,500.00",Not Applicable
Department for Business Energy and Industrial Strategy,Intellectual Property Office,15/03/2023,Miscellaneous Expenses General,"Rights, Policy & Enforcement Directorate",Inclusive Employers Ltd,IN6512,"5,940.00",Not Applicable
Department for Business Energy and Industrial Strategy,Intellectual Property Office,13/03/2023,Supporting UK Business,PDTM Directorate,Browne Jacobson LLP,IN-0001429630002,"2,500.00",Not Applicable
Department for Business Energy and Industrial Strategy,Intellectual Property Office,24/03/2023,Office Machinery,DDaT Directorate,Annodata Limited T/A Kyocera,1312002,"1,021.37",Not Applicable
Department for Business Energy and Industrial Strategy,Intellectual Property Office,01/03/2023,Pay Costs,Projects,JobSpec Limited,JS-759103,"3,526.20",Not Applicable
Department for Business Energy and Industrial Strategy,Intellectual Property Office,08/03/2023,Pay Costs,Projects,JobSpec Limited,JS-759104,"3,918.00",Not Applicable
Department for Business Energy and Industrial Strategy,Intellectual Property Office,21/03/2023,Pay Costs,Projects,JobSpec Limited,JS-759105,"3,918.00",Not Applicable
Department for Business Energy and Industrial Strategy,Intellectual Property Office,22/03/2023,Pay Costs,Projects,JobSpec Limited,JS-759106,"3,918.00",Not Applicable
Department for Business Energy and Industrial Strategy,Intellectual Property Office,29/03/2023,Pay Costs,Projects,JobSpec Limited,JS-759107,"3,918.00",Not Applicable
Department for Business Energy and Industrial Strategy,Intellectual Property Office,27/03/2023,Supporting UK Business,PDTM Directorate,Pannone Corporate LLP,17131893,"2,500.00",Not Applicable
Department for Business Energy and Industrial Strategy,Intellectual Property Office,09/03/2023,Supporting UK Business,"Rights, Policy & Enforcement Directorate",Barley Communications Limited,1254,"2,940.00",Not Applicable
Department for Business Energy and Industrial Strategy,Intellectual Property Office,08/03/2023,Miscellaneous Expenses General,Strategy Directorate,Brunel University London,5015733,"17,371.20",Not Applicable
Department for Business Energy and Industrial Strategy,Intellectual Property Office,10/03/2023,Office Machinery,"Rights, Policy & Enforcement Directorate",Peac Uk Ltd,006/24/0011949,"1,380.00",Not Applicable
Department for Business Energy and Industrial Strategy,Intellectual Property Office,09/03/2023,Pay Costs,DDaT Directorate,Interquest Group UK Ltd,209664,"16,359.30",Not Applicable
Department for Business Energy and Industrial Strategy,Intellectual Property Office,03/03/2023,Supporting UK Business,PDTM Directorate,Exalt IP Limited,100223,"2,083.33",Not Applicable
Department for Business Energy and Industrial Strategy,Intellectual Property Office,02/03/2023,Supporting UK Business,PDTM Directorate,Savanta Group Ltd,380424988,"37,368.00",Not Applicable
Department for Business Energy and Industrial Strategy,Intellectual Property Office,10/03/2023,Accommodation,"Rights, Policy & Enforcement Directorate",Keltic Ltd,173764,"5,498.52",Not Applicable
Department for Business Energy and Industrial Strategy,Intellectual Property Office,07/03/2023,Staff Costs,"Rights, Policy & Enforcement Directorate",GentiumUK Ltd,2022/187,"3,522.79",Not Applicable
Department for Business Energy and Industrial Strategy,Intellectual Property Office,01/03/2023,Supporting UK Business,"Rights, Policy & Enforcement Directorate",GentiumUK Ltd,2022/209,900.00,Not Applicable
Department for Business Energy and Industrial Strategy,Intellectual Property Office,29/03/2023,Information Technology,Projects,PTM EDV Systeme GmbH,AR-2301482-B1R5X,705.49,Not Applicable
Department for Business Energy and Industrial Strategy,Intellectual Property Office,24/03/2023,Other FA at Cost,DDaT Directorate,Scan Computers International Ltd,3257639,"2,224.80",Not Applicable
Department for Business Energy and Industrial Strategy,Intellectual Property Office,14/03/2023,Miscellaneous Expenses General,PDTM Directorate,Cambridge Bar Hill Hotel,3788,"3,700.00",Not Applicable
Department for Business Energy and Industrial Strategy,Intellectual Property Office,14/03/2023,Miscellaneous Expenses General,PDTM Directorate,Cambridge Bar Hill Hotel,5873008CR,"-3,700.00",Not Applicable
Department for Business Energy and Industrial Strategy,Intellectual Property Office,09/03/2023,Supporting UK Business,PDTM Directorate,Mishcon de Reya LLP-Taylor Vinters,4110141,"2,500.00",Not Applicable
Department for Business Energy and Industrial Strategy,Intellectual Property Office,13/03/2023,Supporting UK Business,PDTM Directorate,Mishcon de Reya LLP-Taylor Vinters,4110605,"2,500.00",Not Applicable
Department for Business Energy and Industrial Strategy,Intellectual Property Office,22/03/2023,Supporting UK Business,PDTM Directorate,Mishcon de Reya LLP-Taylor Vinters,4110644,"2,500.00",Not Applicable
Department for Business Energy and Industrial Strategy,Intellectual Property Office,22/03/2023,Supporting UK Business,PDTM Directorate,Mishcon de Reya LLP-Taylor Vinters,4110648,"2,500.00",Not Applicable
Department for Business Energy and Industrial Strategy,Intellectual Property Office,30/03/2023,Supporting UK Business,PDTM Directorate,Mishcon de Reya LLP-Taylor Vinters,4110685,"2,500.00",Not Applicable
Department for Business Energy and Industrial Strategy,Intellectual Property Office,10/03/2023,Postage & Delivery Costs,"Rights, Policy & Enforcement Directorate",Zurich Insurance - Charities,22303455,"2,403.21",Not Applicable
Department for Business Energy and Industrial Strategy,Intellectual Property Office,29/03/2023,Supporting UK Business,Business & International Policy Directorate,Glenboig Primary,GLENBOIGPRIMARYS,"1,000.00",Not Applicable
Department for Business Energy and Industrial Strategy,Intellectual Property Office,14/03/2023,Legal & Hearings,PDTM Directorate,Simon Malynicz KC,54492-06MAR23,"2,214.00",Not Applicable
Department for Business Energy and Industrial Strategy,Intellectual Property Office,21/03/2023,Supporting UK Business,PDTM Directorate,MARKS AND CLERK LAW LLP,112867,"2,500.00",Not Applicable
Department for Business Energy and Industrial Strategy,Intellectual Property Office,29/03/2023,Marketing & Publicity,PDTM Directorate,IDEAS Forums Ltd,INV-0571,"6,000.00",Not Applicable
Department for Business Energy and Industrial Strategy,Intellectual Property Office,31/03/2023,Supporting UK Business,PDTM Directorate,Flynn-IP,S230301,"2,083.33",Not Applicable
Department for Business Energy and Industrial Strategy,Intellectual Property Office,31/03/2023,Supporting UK Business,PDTM Directorate,Brand Murray Fuller LLP,301645,"2,500.00",Not Applicable
Department for Business Energy and Industrial Strategy,Intellectual Property Office,30/03/2023,Other,"Rights, Policy & Enforcement Directorate",Countisbury Fruit,H57720230403brnqcckpp,540.00,Not Applicable
Department for Business Energy and Industrial Strategy,Intellectual Property Office,30/03/2023,Overseas Patent Specifications,PDTM Directorate,Association For Computing,H57720230403euvqijcsw,12.55,Not Applicable
Department for Business Energy and Industrial Strategy,Intellectual Property Office,30/03/2023,Innovation Fund,Business & International Policy Directorate,Linkedin Ads 8129794286,H57720230403fgfcvthlk,190.51,Not Applicable
Department for Business Energy and Industrial Strategy,Intellectual Property Office,30/03/2023,Office Stationery,"Rights, Policy & Enforcement Directorate",Www.Screwfix.Com,H57720230403jliincbio,32.74,Not Applicable
Department for Business Energy and Industrial Strategy,Intellectual Property Office,30/03/2023,Office Stationery,"Rights, Policy & Enforcement Directorate",Amznmktplace,H57720230403pvyfdvtcb,15.96,Not Applicable
Department for Business Energy and Industrial Strategy,Intellectual Property Office,30/03/2023,Career Development Services,"Rights, Policy & Enforcement Directorate",Thomas Telford Limit,H57720230403quzhewyob,442.10,Not Applicable
Department for Business Energy and Industrial Strategy,Intellectual Property Office,29/03/2023,Other,"Rights, Policy & Enforcement Directorate",Asda Superstore 4928,H57720230331pbsuodvzz,7.50,Not Applicable
Department for Business Energy and Industrial Strategy,Intellectual Property Office,29/03/2023,Innovation Fund,Business & International Policy Directorate,Linkedin Ads 8125056036,H57720230331pqjkcedxw,193.01,Not Applicable
Department for Business Energy and Industrial Strategy,Intellectual Property Office,28/03/2023,Overseas Patent Specifications,PDTM Directorate,Wiley,H57720230331psbejgnns,41.30,Not Applicable
Department for Business Energy and Industrial Strategy,Intellectual Property Office,29/03/2023,Office Stationery,"Rights, Policy & Enforcement Directorate",Www.Screwfix.Com,H57720230331ujrdnyqxf,444.86,Not Applicable
Department for Business Energy and Industrial Strategy,Intellectual Property Office,29/03/2023,Career Development Services,"Rights, Policy & Enforcement Directorate",The Myersbriggs Company L,H57720230331xbbrhhdgw,847.80,Not Applicable
Department for Business Energy and Industrial Strategy,Intellectual Property Office,29/03/2023,Education Campaign,Strategy Directorate,4imprint Direct Ltd,H57720230331xhcwtuikr,407.98,Not Applicable
Department for Business Energy and Industrial Strategy,Intellectual Property Office,28/03/2023,Other,"Rights, Policy & Enforcement Directorate",Tesco-Stores 6459,H57720230330bwrkjjxwx,11.55,Not Applicable
Department for Business Energy and Industrial Strategy,Intellectual Property Office,28/03/2023,Office Stationery,"Rights, Policy & Enforcement Directorate",Amznmktplace,H57720230330iitqufgrw,79.80,Not Applicable
Department for Business Energy and Industrial Strategy,Intellectual Property Office,28/03/2023,Career Development Services,Finance Directorate,Kaplan Financial Ltd,H57720230330ikstnrglj,906.00,Not Applicable
Department for Business Energy and Industrial Strategy,Intellectual Property Office,28/03/2023,Career Development Services,Finance Directorate,Kaplan Financial Ltd,H57720230330jnbgdirqu,356.00,Not Applicable
Department for Business Energy and Industrial Strategy,Intellectual Property Office,28/03/2023,Office Stationery,"Rights, Policy & Enforcement Directorate",Sig,H57720230330mwkpnfips,168.37,Not Applicable
Department for Business Energy and Industrial Strategy,Intellectual Property Office,28/03/2023,Perpetual Licences,DDaT Directorate,Fs *dolphinaccess,H57720230330nderyzmqr,1392.00,Not Applicable
Department for Business Energy and Industrial Strategy,Intellectual Property Office,28/03/2023,Other,"Rights, Policy & Enforcement Directorate",Amznmktplace,H57720230329idmqegflm,45.98,Not Applicable
Department for Business Energy and Industrial Strategy,Intellectual Property Office,27/03/2023,Office Stationery,"Rights, Policy & Enforcement Directorate",Srs Sales & Service Lt,H57720230329pxzrqsvdv,756.00,Not Applicable
Department for Business Energy and Industrial Strategy,Intellectual Property Office,27/03/2023,Career Development Services,"Rights, Policy & Enforcement Directorate",The Myersbriggs Company L,H57720230329rwznswdaw,1007.70,Not Applicable
Department for Business Energy and Industrial Strategy,Intellectual Property Office,27/03/2023,Career Development Services,"Rights, Policy & Enforcement Directorate",Amznmktplace,H57720230329viiqvtudw,39.96,Not Applicable
Department for Business Energy and Industrial Strategy,Intellectual Property Office,27/03/2023,Career Development Services,"Rights, Policy & Enforcement Directorate",Amznmktplace,H57720230329xjpdlxgys,28.46,Not Applicable
Department for Business Energy and Industrial Strategy,Intellectual Property Office,27/03/2023,Office Stationery,"Rights, Policy & Enforcement Directorate",Srs Sales & Service Lt,H57720230329yjofmsrkv,300.00,Not Applicable
Department for Business Energy and Industrial Strategy,Intellectual Property Office,24/03/2023,Office Stationery,"Rights, Policy & Enforcement Directorate",Ppe Workwear Direct,H57720230328idydlfgwq,188.38,Not Applicable
Department for Business Energy and Industrial Strategy,Intellectual Property Office,24/03/2023,Perpetual Licences,DDaT Directorate,Helios Software,H57720230328kobauqkjy,153.60,Not Applicable
Department for Business Energy and Industrial Strategy,Intellectual Property Office,24/03/2023,Office Stationery,"Rights, Policy & Enforcement Directorate",Ppe Workwear Direct,H57720230328sgzlneckr,144.55,Not Applicable
Department for Business Energy and Industrial Strategy,Intellectual Property Office,23/03/2023,Minor Works-Goods,"Rights, Policy & Enforcement Directorate",Www.Screwfix.Com,H57720230325cpcargbyg,66.13,Not Applicable
Department for Business Energy and Industrial Strategy,Intellectual Property Office,24/03/2023,Minor Works-Goods,"Rights, Policy & Enforcement Directorate",Amznmktplace,H57720230325mnqayrsif,119.89,Not Applicable
Department for Business Energy and Industrial Strategy,Intellectual Property Office,23/03/2023,Career Development Services,Strategy Directorate,Cim,H57720230325mqtqvuhfp,165.00,Not Applicable
Department for Business Energy and Industrial Strategy,Intellectual Property Office,24/03/2023,Minor Works-Goods,"Rights, Policy & Enforcement Directorate",Amznmktplace,H57720230325nifkxeeho,95.91,Not Applicable
Department for Business Energy and Industrial Strategy,Intellectual Property Office,23/03/2023,Minor Works-Goods,"Rights, Policy & Enforcement Directorate",Paypal,H57720230325pfjcngzpl,251.70,Not Applicable
Department for Business Energy and Industrial Strategy,Intellectual Property Office,23/03/2023,Placement Fees,"Rights, Policy & Enforcement Directorate",Linkedin Ads,H57720230325qhhvlygly,87.26,Not Applicable
Department for Business Energy and Industrial Strategy,Intellectual Property Office,24/03/2023,Minor Works-Goods,"Rights, Policy & Enforcement Directorate",Amznmktplace,H57720230325rkhckwaop,95.91,Not Applicable
Department for Business Energy and Industrial Strategy,Intellectual Property Office,23/03/2023,Minor Works-Goods,"Rights, Policy & Enforcement Directorate",Amznmktplace,H57720230325rprggrumy,104.91,Not Applicable
Department for Business Energy and Industrial Strategy,Intellectual Property Office,23/03/2023,Other,"Rights, Policy & Enforcement Directorate",Tts Training Services,H57720230325scchcvmjx,859.20,Not Applicable
Department for Business Energy and Industrial Strategy,Intellectual Property Office,23/03/2023,Office Stationery,"Rights, Policy & Enforcement Directorate",Www.Officesupplies.Org,H57720230325wqhkuiqxx,29.21,Not Applicable
Department for Business Energy and Industrial Strategy,Intellectual Property Office,24/03/2023,Minor Works-Goods,"Rights, Policy & Enforcement Directorate",Amznmktplace,H57720230325wxdqitboi,95.91,Not Applicable
Department for Business Energy and Industrial Strategy,Intellectual Property Office,23/03/2023,Perpetual Licences,DDaT Directorate,Dri*,H57720230325ynxqrxxcg,258.00,Not Applicable
Department for Business Energy and Industrial Strategy,Intellectual Property Office,22/03/2023,Network and infrastructure H/W,"Rights, Policy & Enforcement Directorate",Casio Online,H57720230324cnlkbqisx,38.91,Not Applicable
Department for Business Energy and Industrial Strategy,Intellectual Property Office,22/03/2023,Office Stationery,"Rights, Policy & Enforcement Directorate",South Wales Suppliers Lim,H57720230324ejbykfxvf,227.40,Not Applicable
Department for Business Energy and Industrial Strategy,Intellectual Property Office,23/03/2023,Career Development Services,"Rights, Policy & Enforcement Directorate",Amazon.Co.Uk,H57720230324hwddmsoxy,27.93,Not Applicable
Department for Business Energy and Industrial Strategy,Intellectual Property Office,22/03/2023,Minor Works-Goods,"Rights, Policy & Enforcement Directorate",Sp Meon-Uk,H57720230324tmvliifry,72.94,Not Applicable
Department for Business Energy and Industrial Strategy,Intellectual Property Office,22/03/2023,Minor Works-Goods,"Rights, Policy & Enforcement Directorate",Amznmktplace,H57720230324wjdcspell,89.91,Not Applicable
Department for Business Energy and Industrial Strategy,Intellectual Property Office,22/03/2023,Office Stationery,"Rights, Policy & Enforcement Directorate",Imo Car Wash Newport,H57720230324ygcqamtjh,13.00,Not Applicable
Department for Business Energy and Industrial Strategy,Intellectual Property Office,21/03/2023,Office Stationery,"Rights, Policy & Enforcement Directorate",Lightbulbs-Direct.Com,H57720230323cjumdsntp,50.49,Not Applicable
Department for Business Energy and Industrial Strategy,Intellectual Property Office,21/03/2023,Office Stationery,"Rights, Policy & Enforcement Directorate",Amznmktplace,H57720230323ecdrttfrc,23.97,Not Applicable
Department for Business Energy and Industrial Strategy,Intellectual Property Office,21/03/2023,Office Stationery,"Rights, Policy & Enforcement Directorate",Amznmktplace,H57720230323glldmnyuy,23.97,Not Applicable
Department for Business Energy and Industrial Strategy,Intellectual Property Office,21/03/2023,Office Stationery,"Rights, Policy & Enforcement Directorate",Www.Screwfix.Com,H57720230323gtrmxyauy,233.99,Not Applicable
Department for Business Energy and Industrial Strategy,Intellectual Property Office,21/03/2023,Education Campaign,PDTM Directorate,About Town Business Servi,H57720230323jylyposxj,4.50,Not Applicable
Department for Business Energy and Industrial Strategy,Intellectual Property Office,21/03/2023,Minor Works-Goods,"Rights, Policy & Enforcement Directorate",Www.Screwfix.Com,H57720230323vbnezejqo,238.99,Not Applicable
Department for Business Energy and Industrial Strategy,Intellectual Property Office,21/03/2023,Other,"Rights, Policy & Enforcement Directorate",Executivegrapevine,H57720230323wjsgpbtlt,5.00,Not Applicable
Department for Business Energy and Industrial Strategy,Intellectual Property Office,21/03/2023,Career Development Services,DDaT Directorate,Sp Scrum.Org,H57720230323yzppjpjum,126.94,Not Applicable
Department for Business Energy and Industrial Strategy,Intellectual Property Office,20/03/2023,Career Development Services,PDTM Directorate,The Market Research,H57720230322nxtiogmtz,204.00,Not Applicable
Department for Business Energy and Industrial Strategy,Intellectual Property Office,20/03/2023,Career Development Services,"Rights, Policy & Enforcement Directorate",Lidl Gb,H57720230322rtygmhodq,12.47,Not Applicable
Department for Business Energy and Industrial Strategy,Intellectual Property Office,20/03/2023,Career Development Services,Strategy Directorate,The Myersbriggs Company L,H57720230322wdgahjxsq,478.00,Not Applicable
Department for Business Energy and Industrial Strategy,Intellectual Property Office,20/03/2023,Career Development Services,"Rights, Policy & Enforcement Directorate",The Myersbriggs Company L,H57720230322wdgahjxsq,905.30,Not Applicable
Department for Business Energy and Industrial Strategy,Intellectual Property Office,17/03/2023,Seminars and Confereces,Business & International Policy Directorate,Sq *north Star Safety Gro,H57720230321eniuliymo,117.98,Not Applicable
Department for Business Energy and Industrial Strategy,Intellectual Property Office,17/03/2023,Entertainment,"Rights, Policy & Enforcement Directorate",Epidemic Sound Ab,H57720230321gxopzfjzs,46.80,Not Applicable
Department for Business Energy and Industrial Strategy,Intellectual Property Office,17/03/2023,Career Development Services,DDaT Directorate,Dods Group Limited,H57720230321hdplytgvm,300.00,Not Applicable
Department for Business Energy and Industrial Strategy,Intellectual Property Office,19/03/2023,Minor Works-Goods,"Rights, Policy & Enforcement Directorate",Amznmktplace,H57720230321keddetljd,23.97,Not Applicable
Department for Business Energy and Industrial Strategy,Intellectual Property Office,17/03/2023,Perpetual Licences,DDaT Directorate,Dri*,H57720230321nwkxjehxe,516.00,Not Applicable
Department for Business Energy and Industrial Strategy,Intellectual Property Office,18/03/2023,Overseas Patent Specifications,PDTM Directorate,Aippscitation,H57720230321rboyqyknc,34.25,Not Applicable
Department for Business Energy and Industrial Strategy,Intellectual Property Office,17/03/2023,Other,"Rights, Policy & Enforcement Directorate",Amznmktplace,H57720230321wbeigjotg,25.18,Not Applicable
Department for Business Energy and Industrial Strategy,Intellectual Property Office,14/03/2023,Legal Consultancy,DDaT Directorate,Ipo,H57720230321wmtjwlxjq,-50.00,Not Applicable
Department for Business Energy and Industrial Strategy,Intellectual Property Office,17/03/2023,Office Stationery,"Rights, Policy & Enforcement Directorate",Amznmktplace,H57720230318aobvupvrr,56.99,Not Applicable
Department for Business Energy and Industrial Strategy,Intellectual Property Office,11/03/2023,Legal Consultancy,DDaT Directorate,Ipo,H57720230318cmpmtjlrd,-170.00,Not Applicable
Department for Business Energy and Industrial Strategy,Intellectual Property Office,16/03/2023,Education Campaign,PDTM Directorate,Www.Livebuzz,H57720230318dwrtjsjhl,180.00,Not Applicable
Department for Business Energy and Industrial Strategy,Intellectual Property Office,11/03/2023,Legal Consultancy,DDaT Directorate,Ipo,H57720230318fshxbsszq,-170.00,Not Applicable
Department for Business Energy and Industrial Strategy,Intellectual Property Office,16/03/2023,Education Campaign,PDTM Directorate,Www.Westminster-Briefi,H57720230318gburkulgw,354.00,Not Applicable
Department for Business Energy and Industrial Strategy,Intellectual Property Office,05/03/2023,Legal Consultancy,DDaT Directorate,Ipo,H57720230318huvdacncn,-50.00,Not Applicable
Department for Business Energy and Industrial Strategy,Intellectual Property Office,11/03/2023,Legal Consultancy,DDaT Directorate,Ipo,H57720230318iyksmnhrx,-50.00,Not Applicable
Department for Business Energy and Industrial Strategy,Intellectual Property Office,15/03/2023,Minor Works-Goods,"Rights, Policy & Enforcement Directorate",Newey & Eyre,H57720230318ktidrsxpl,359.12,Not Applicable
Department for Business Energy and Industrial Strategy,Intellectual Property Office,16/03/2023,Other,"Rights, Policy & Enforcement Directorate",First 4 Safety Ltd,H57720230318nngqxomeq,214.80,Not Applicable
Department for Business Energy and Industrial Strategy,Intellectual Property Office,15/03/2023,Office Stationery,"Rights, Policy & Enforcement Directorate",Premier Farnell,H57720230318ocpxxuncz,28.80,Not Applicable
Department for Business Energy and Industrial Strategy,Intellectual Property Office,16/03/2023,Office Stationery,"Rights, Policy & Enforcement Directorate",Amznmktplace,H57720230318odmhmweti,23.18,Not Applicable
Department for Business Energy and Industrial Strategy,Intellectual Property Office,16/03/2023,Seminars and Confereces,Business & International Policy Directorate,Northstar Safety Group,H57720230318plpjruyhi,529.20,Not Applicable
Department for Business Energy and Industrial Strategy,Intellectual Property Office,16/03/2023,Office Stationery,"Rights, Policy & Enforcement Directorate",Www.Safeoptions.Co.Uk,H57720230318qdmptfklr,21.01,Not Applicable
Department for Business Energy and Industrial Strategy,Intellectual Property Office,11/03/2023,Legal Consultancy,DDaT Directorate,Ipo,H57720230318tnpwlhbhx,-170.00,Not Applicable
Department for Business Energy and Industrial Strategy,Intellectual Property Office,16/03/2023,Seminars and Confereces,Business & International Policy Directorate,Northstar Safety Group,H57720230318xotqmvyjg,529.20,Not Applicable
Department for Business Energy and Industrial Strategy,Intellectual Property Office,15/03/2023,Office Stationery,"Rights, Policy & Enforcement Directorate",Www.Nisbets.Com,H57720230317aicyyllqe,86.32,Not Applicable
Department for Business Energy and Industrial Strategy,Intellectual Property Office,14/03/2023,Overseas Patent Specifications,PDTM Directorate,Wiley,H57720230317dmidxjlwn,41.91,Not Applicable
Department for Business Energy and Industrial Strategy,Intellectual Property Office,14/03/2023,Legal Consultancy,DDaT Directorate,Ipo,H57720230317jwqhlbbju,50.00,Not Applicable
Department for Business Energy and Industrial Strategy,Intellectual Property Office,15/03/2023,Office Stationery,"Rights, Policy & Enforcement Directorate",Amznmktplace,H57720230317xvgwgcolh,9.88,Not Applicable
Department for Business Energy and Industrial Strategy,Intellectual Property Office,15/03/2023,Career Development Services,DDaT Directorate,Assist Knowledge Decel,H57720230317yrkjwmlut,270.00,Not Applicable
Department for Business Energy and Industrial Strategy,Intellectual Property Office,15/03/2023,Perpetual Licences,DDaT Directorate,Dri*,H57720230316byfhvceoa,679.99,Not Applicable
Department for Business Energy and Industrial Strategy,Intellectual Property Office,14/03/2023,Placement Fees,DDaT Directorate,Cashiers Office,H57720230316fmyrwtbpo,61.20,Not Applicable
Department for Business Energy and Industrial Strategy,Intellectual Property Office,14/03/2023,Books,PDTM Directorate,Amazon.Co.Uk,H57720230316gmqhzlabq,38.98,Not Applicable
Department for Business Energy and Industrial Strategy,Intellectual Property Office,14/03/2023,Career Development Services,DDaT Directorate,Vue Itcertificationvue,H57720230316hguvvrpca,135.60,Not Applicable
Department for Business Energy and Industrial Strategy,Intellectual Property Office,14/03/2023,Placement Fees,"Rights, Policy & Enforcement Directorate",Linkedin Ads 8849249684,H57720230316hqrrotbky,112.36,Not Applicable
Department for Business Energy and Industrial Strategy,Intellectual Property Office,14/03/2023,Education Campaign,PDTM Directorate,Amznmktplace,H57720230316lcxluwicx,146.58,Not Applicable
Department for Business Energy and Industrial Strategy,Intellectual Property Office,15/03/2023,Perpetual Licences,DDaT Directorate,Dri*,H57720230316lmdlvpvic,679.99,Not Applicable
Department for Business Energy and Industrial Strategy,Intellectual Property Office,14/03/2023,Career Development Services,DDaT Directorate,Vue Itcertificationvue,H57720230316rkshxbunv,41.40,Not Applicable
Department for Business Energy and Industrial Strategy,Intellectual Property Office,14/03/2023,Books,DDaT Directorate,Amazon.Co.Uk,H57720230316saycxwope,29.98,Not Applicable
Department for Business Energy and Industrial Strategy,Intellectual Property Office,14/03/2023,Office Stationery,"Rights, Policy & Enforcement Directorate",Specsaversevougb-,H57720230316wjmibnccw,680.00,Not Applicable
Department for Business Energy and Industrial Strategy,Intellectual Property Office,13/03/2023,Placement Fees,DDaT Directorate,Facebk *xrp8ppkbe2,H57720230315mcvihiwoq,62.97,Not Applicable
Department for Business Energy and Industrial Strategy,Intellectual Property Office,13/03/2023,Other,"Rights, Policy & Enforcement Directorate",Tcgroupltd,H57720230315plrpixxcw,24.00,Not Applicable
Department for Business Energy and Industrial Strategy,Intellectual Property Office,13/03/2023,Entertainment,"Rights, Policy & Enforcement Directorate",Www.Filmbank.Co.Uk,H57720230315qfloojkay,150.00,Not Applicable
Department for Business Energy and Industrial Strategy,Intellectual Property Office,13/03/2023,Education Campaign,Strategy Directorate,Dods Group Limited,H57720230315wuwqontxw,354.00,Not Applicable
Department for Business Energy and Industrial Strategy,Intellectual Property Office,10/03/2023,Office Stationery,"Rights, Policy & Enforcement Directorate",British Red Cross Soci,H57720230314anvsferqi,418.80,Not Applicable
Department for Business Energy and Industrial Strategy,Intellectual Property Office,11/03/2023,Placement Fees,"Rights, Policy & Enforcement Directorate",Linkedin Ads 8840641464,H57720230314bxzwmcvwn,92.91,Not Applicable
Department for Business Energy and Industrial Strategy,Intellectual Property Office,10/03/2023,Career Development Services,Strategy Directorate,Datacamp Inc.,H57720230314dlqsqcnpf,518.82,Not Applicable
Department for Business Energy and Industrial Strategy,Intellectual Property Office,10/03/2023,Overseas Patent Specifications,PDTM Directorate,National Express Limited,H57720230314dojgkelnp,20.00,Not Applicable
Department for Business Energy and Industrial Strategy,Intellectual Property Office,11/03/2023,Legal Consultancy,DDaT Directorate,Ipo,H57720230314ezvmxmbyr,170.00,Not Applicable
Department for Business Energy and Industrial Strategy,Intellectual Property Office,11/03/2023,Legal Consultancy,DDaT Directorate,Ipo,H57720230314gdijqwcst,50.00,Not Applicable
Department for Business Energy and Industrial Strategy,Intellectual Property Office,11/03/2023,Legal Consultancy,DDaT Directorate,Ipo,H57720230314hcbzmvxcp,5.00,Not Applicable
Department for Business Energy and Industrial Strategy,Intellectual Property Office,11/03/2023,Legal Consultancy,DDaT Directorate,Ipo,H57720230314iyyrylzet,170.00,Not Applicable
Department for Business Energy and Industrial Strategy,Intellectual Property Office,17/02/2023,Minor Works-Goods,"Rights, Policy & Enforcement Directorate",Newey & Eyre,H57720230314kfghqcpnd,326.42,Not Applicable
Department for Business Energy and Industrial Strategy,Intellectual Property Office,01/03/2023,Minor Works-Goods,"Rights, Policy & Enforcement Directorate",Newey & Eyre,H57720230314lhsslusiz,887.46,Not Applicable
Department for Business Energy and Industrial Strategy,Intellectual Property Office,17/02/2023,Minor Works-Goods,"Rights, Policy & Enforcement Directorate",Newey & Eyre,H57720230314liwvdehnf,262.10,Not Applicable
Department for Business Energy and Industrial Strategy,Intellectual Property Office,11/03/2023,Legal Consultancy,DDaT Directorate,Ipo,H57720230314npruwjfua,30.00,Not Applicable
Department for Business Energy and Industrial Strategy,Intellectual Property Office,13/03/2023,Office Stationery,"Rights, Policy & Enforcement Directorate",Amznmktplace,H57720230314reuevypxh,64.95,Not Applicable
Department for Business Energy and Industrial Strategy,Intellectual Property Office,11/03/2023,Legal Consultancy,DDaT Directorate,Ipo,H57720230314ufhqqsjrj,170.00,Not Applicable
Department for Business Energy and Industrial Strategy,Intellectual Property Office,13/03/2023,Books Newspaper Pub(central),Strategy Directorate,Amznmktplace,H57720230314vrgdntent,13.48,Not Applicable
Department for Business Energy and Industrial Strategy,Intellectual Property Office,10/03/2023,Office Stationery,"Rights, Policy & Enforcement Directorate",British Red Cross Soci,H57720230314xnpuwksqr,418.80,Not Applicable
Department for Business Energy and Industrial Strategy,Intellectual Property Office,10/03/2023,Overseas Patent Specifications,PDTM Directorate,Science-Aaas Access,H57720230314ytheetwdu,26.12,Not Applicable
Department for Business Energy and Industrial Strategy,Intellectual Property Office,09/03/2023,Office Stationery,"Rights, Policy & Enforcement Directorate",Www.Screwfix.Com,H57720230311ajjepccdt,29.16,Not Applicable
Department for Business Energy and Industrial Strategy,Intellectual Property Office,09/03/2023,Network and infrastructure H/W,DDaT Directorate,Broadberry Data System,H57720230311cjfztsmxi,838.80,Not Applicable
Department for Business Energy and Industrial Strategy,Intellectual Property Office,09/03/2023,Perpetual Licences,DDaT Directorate,Lucid Software Inc.,H57720230311hqcmqcibm,96.00,Not Applicable
Department for Business Energy and Industrial Strategy,Intellectual Property Office,09/03/2023,Office Stationery,"Rights, Policy & Enforcement Directorate",Www.Screwfix.Com,H57720230311irqwwsoey,184.17,Not Applicable
Department for Business Energy and Industrial Strategy,Intellectual Property Office,09/03/2023,Office Stationery,"Rights, Policy & Enforcement Directorate",Www.Screwfix.Com,H57720230311jkpjytxyi,42.99,Not Applicable
Department for Business Energy and Industrial Strategy,Intellectual Property Office,10/03/2023,Perpetual Licences,DDaT Directorate,Dri*,H57720230311lpassqnar,2039.97,Not Applicable
Department for Business Energy and Industrial Strategy,Intellectual Property Office,09/03/2023,Office Stationery,"Rights, Policy & Enforcement Directorate",Www.Screwfix.Com,H57720230311uhdimquzn,42.99,Not Applicable
Department for Business Energy and Industrial Strategy,Intellectual Property Office,09/03/2023,Office Stationery,"Rights, Policy & Enforcement Directorate",Mollie *ceiling Tiles Uk,H57720230311umztoespd,193.20,Not Applicable
Department for Business Energy and Industrial Strategy,Intellectual Property Office,09/03/2023,Perpetual Licences,DDaT Directorate,Digicert Inc,H57720230311vavhwqgpt,251.72,Not Applicable
Department for Business Energy and Industrial Strategy,Intellectual Property Office,09/03/2023,Perpetual Licences,DDaT Directorate,Digicert Inc,H57720230311vkatqcvgy,251.72,Not Applicable
Department for Business Energy and Industrial Strategy,Intellectual Property Office,09/03/2023,Office Stationery,"Rights, Policy & Enforcement Directorate",Www.Screwfix.Com,H57720230311vlquurpmi,42.99,Not Applicable
Department for Business Energy and Industrial Strategy,Intellectual Property Office,09/03/2023,Perpetual Licences,DDaT Directorate,Heroku* Feb-78790986,H57720230311xkkupuvbm,2.55,Not Applicable
Department for Business Energy and Industrial Strategy,Intellectual Property Office,09/03/2023,Perpetual Licences,DDaT Directorate,Heroku* Feb-78710605,H57720230311xodkhhsih,4.37,Not Applicable
Department for Business Energy and Industrial Strategy,Intellectual Property Office,08/03/2023,Perpetual Licences,DDaT Directorate,Paypal,H57720230311zjqeddozr,420.00,Not Applicable
Department for Business Energy and Industrial Strategy,Intellectual Property Office,08/03/2023,Office Stationery,"Rights, Policy & Enforcement Directorate",Www.Screwfix.Com,H57720230310bmpgiyqlf,40.71,Not Applicable
Department for Business Energy and Industrial Strategy,Intellectual Property Office,08/03/2023,Perpetual Licences,DDaT Directorate,Texthelpltd,H57720230310kmjtmdoxb,234.00,Not Applicable
Department for Business Energy and Industrial Strategy,Intellectual Property Office,08/03/2023,Translation Services,"Rights, Policy & Enforcement Directorate",Link Up Mitaka Ltd,H57720230310tgncgixwe,4.70,Not Applicable
Department for Business Energy and Industrial Strategy,Intellectual Property Office,08/03/2023,Office Stationery,"Rights, Policy & Enforcement Directorate",Amznmktplace,H57720230310vpssfkhmh,151.80,Not Applicable
Department for Business Energy and Industrial Strategy,Intellectual Property Office,28/02/2023,Legal Consultancy,DDaT Directorate,Ipo,H57720230309bznodnydp,-170.00,Not Applicable
Department for Business Energy and Industrial Strategy,Intellectual Property Office,07/03/2023,Office Stationery,"Rights, Policy & Enforcement Directorate",Amznmktplace,H57720230309eduppvxug,90.58,Not Applicable
Department for Business Energy and Industrial Strategy,Intellectual Property Office,07/03/2023,Office Stationery,"Rights, Policy & Enforcement Directorate",Wf *uk3877382604,H57720230309fpinnqtrk,157.99,Not Applicable
Department for Business Energy and Industrial Strategy,Intellectual Property Office,07/03/2023,Office Stationery,"Rights, Policy & Enforcement Directorate",British Red Cross Soci,H57720230309nhprfstyq,198.00,Not Applicable
Department for Business Energy and Industrial Strategy,Intellectual Property Office,07/03/2023,Seminars and Confereces,CEO/SEC Directorate,Heathrow Airport,H57720230309uyuyfeula,65.40,Not Applicable
Department for Business Energy and Industrial Strategy,Intellectual Property Office,07/03/2023,Office Stationery,"Rights, Policy & Enforcement Directorate",Iwfm,H57720230309yiqdnmjdh,245.00,Not Applicable
Department for Business Energy and Industrial Strategy,Intellectual Property Office,06/03/2023,Career Development Services,"Rights, Policy & Enforcement Directorate",Pret A Manger Europe Lt,H57720230308elhhvcaci,80.15,Not Applicable
Department for Business Energy and Industrial Strategy,Intellectual Property Office,06/03/2023,Office Stationery,"Rights, Policy & Enforcement Directorate",Www.Screwfix.Com,H57720230308juoccmmvm,45.47,Not Applicable
Department for Business Energy and Industrial Strategy,Intellectual Property Office,06/03/2023,Minor Works-Goods,"Rights, Policy & Enforcement Directorate",Ikea Ltd Shop Online,H57720230308ltuuebrgb,50.00,Not Applicable
Department for Business Energy and Industrial Strategy,Intellectual Property Office,06/03/2023,Office Stationery,"Rights, Policy & Enforcement Directorate",C.E.F. (Newport),H57720230308qqgygdcgp,12.54,Not Applicable
Department for Business Energy and Industrial Strategy,Intellectual Property Office,06/03/2023,Other,"Rights, Policy & Enforcement Directorate",Asda Superstore 4928,H57720230308ryhybtcnv,4.00,Not Applicable
Department for Business Energy and Industrial Strategy,Intellectual Property Office,06/03/2023,Career Development Services,"Rights, Policy & Enforcement Directorate",Amazon.Co.Uk,H57720230308tbkkubptq,44.99,Not Applicable
Department for Business Energy and Industrial Strategy,Intellectual Property Office,06/03/2023,Office Stationery,"Rights, Policy & Enforcement Directorate",Toolstation Uk,H57720230308txtlatnoi,27.00,Not Applicable
Department for Business Energy and Industrial Strategy,Intellectual Property Office,05/03/2023,Legal Consultancy,DDaT Directorate,Ipo,H57720230308ysayitocl,50.00,Not Applicable
Department for Business Energy and Industrial Strategy,Intellectual Property Office,03/03/2023,Overseas Patent Specifications,PDTM Directorate,Wiley,H57720230307byhomaktb,36.27,Not Applicable
Department for Business Energy and Industrial Strategy,Intellectual Property Office,03/03/2023,Placement Fees,DDaT Directorate,Facebk 6c4rsmtbe2,H57720230307ertwvpkwj,100.00,Not Applicable
Department for Business Energy and Industrial Strategy,Intellectual Property Office,01/03/2023,Office Stationery,"Rights, Policy & Enforcement Directorate",Elec Deals,H57720230307fsoonqfvn,200.62,Not Applicable
Department for Business Energy and Industrial Strategy,Intellectual Property Office,03/03/2023,Office Stationery,"Rights, Policy & Enforcement Directorate",Www.Screwfix.Com,H57720230307yisnaevec,63.71,Not Applicable
Department for Business Energy and Industrial Strategy,Intellectual Property Office,02/03/2023,Minor Works-Goods,"Rights, Policy & Enforcement Directorate",Enrg Tech Ltd,H57720230304hmrucpvii,395.11,Not Applicable
Department for Business Energy and Industrial Strategy,Intellectual Property Office,02/03/2023,Office Stationery,"Rights, Policy & Enforcement Directorate",Amznmktplace,H57720230304nnohveboo,18.00,Not Applicable
Department for Business Energy and Industrial Strategy,Intellectual Property Office,02/03/2023,Minor Works-Goods,"Rights, Policy & Enforcement Directorate",Viking Office UK Limit,H57720230304pcwvgkoyg,773.88,Not Applicable
Department for Business Energy and Industrial Strategy,Intellectual Property Office,02/03/2023,Office Stationery,"Rights, Policy & Enforcement Directorate",First 4 Safety Ltd,H57720230304ptcdfvuqo,214.80,Not Applicable
Department for Business Energy and Industrial Strategy,Intellectual Property Office,01/03/2023,Office Stationery,"Rights, Policy & Enforcement Directorate",Tfl Business Bops Web,H57720230304qhsfhlswj,15.00,Not Applicable
Department for Business Energy and Industrial Strategy,Intellectual Property Office,02/03/2023,Office Stationery,"Rights, Policy & Enforcement Directorate",Amznmktplace,H57720230304zfffwdtlz,84.00,Not Applicable
Department for Business Energy and Industrial Strategy,Intellectual Property Office,01/03/2023,Minor Works-Goods,"Rights, Policy & Enforcement Directorate",Amznmktplace,H57720230303cwpefxykk,12.98,Not Applicable
Department for Business Energy and Industrial Strategy,Intellectual Property Office,01/03/2023,Perpetual Licences,DDaT Directorate,Digicert Inc,H57720230303dnsgbvmhs,249.59,Not Applicable
Department for Business Energy and Industrial Strategy,Intellectual Property Office,28/02/2023,Legal Consultancy,DDaT Directorate,Ipo,H57720230303fmlaxwsvq,170.00,Not Applicable
Department for Business Energy and Industrial Strategy,Intellectual Property Office,01/03/2023,Office Stationery,"Rights, Policy & Enforcement Directorate",Edwardes Bros Ltd,H57720230303hdufspdok,117.00,Not Applicable
Department for Business Energy and Industrial Strategy,Intellectual Property Office,01/03/2023,Perpetual Licences,DDaT Directorate,Digicert Inc,H57720230303hlistlbck,676.00,Not Applicable
Department for Business Energy and Industrial Strategy,Intellectual Property Office,01/03/2023,Office Stationery,"Rights, Policy & Enforcement Directorate",Reseiclo Community Wood,H57720230303ieaujyjff,378.00,Not Applicable
Department for Business Energy and Industrial Strategy,Intellectual Property Office,02/03/2023,Office Stationery,"Rights, Policy & Enforcement Directorate",Amznmktplace,H57720230303owbigtcrb,70.74,Not Applicable
Department for Business Energy and Industrial Strategy,Intellectual Property Office,01/03/2023,Office Stationery,"Rights, Policy & Enforcement Directorate",Amznmktplace,H57720230303rnoqhbwem,425.88,Not Applicable
Department for Business Energy and Industrial Strategy,Intellectual Property Office,02/03/2023,Office Stationery,"Rights, Policy & Enforcement Directorate",Amznmktplace,H57720230303weqhpgwfe,70.72,Not Applicable
Department for Business Energy and Industrial Strategy,Intellectual Property Office,02/03/2023,Office Stationery,"Rights, Policy & Enforcement Directorate",Amznmktplace,H57720230303wmmphbecd,70.74,Not Applicable
Department for Business Energy and Industrial Strategy,Intellectual Property Office,02/03/2023,Office Stationery,"Rights, Policy & Enforcement Directorate",Amznmktplace,H57720230303xslwdhocj,70.74,Not Applicable
Department for Business Energy and Industrial Strategy,Intellectual Property Office,01/03/2023,Office Stationery,"Rights, Policy & Enforcement Directorate",Grandado,H57720230303zhehfjxwf,161.50,Not Applicable
Department for Business Energy and Industrial Strategy,Intellectual Property Office,02/03/2023,Office Stationery,"Rights, Policy & Enforcement Directorate",Amznmktplace,H57720230303zltdbovzx,70.74,Not Applicable
Department for Business Energy and Industrial Strategy,Intellectual Property Office,28/02/2023,Office Stationery,"Rights, Policy & Enforcement Directorate",Amznmktplace,H57720230302ehyvyyueg,11.97,Not Applicable
Department for Business Energy and Industrial Strategy,Intellectual Property Office,28/02/2023,Perpetual Licences,DDaT Directorate,Digicert Inc,H57720230302hyrdipdij,711.92,Not Applicable
Department for Business Energy and Industrial Strategy,Intellectual Property Office,28/02/2023,Office Stationery,"Rights, Policy & Enforcement Directorate",Healthy Workstations Ltd,H57720230302mhwhaqump,13.14,Not Applicable
Department for Business Energy and Industrial Strategy,Intellectual Property Office,27/02/2023,Career Development Services,DDaT Directorate,Isaca,H57720230302oewfrurzm,138.11,Not Applicable
Department for Business Energy and Industrial Strategy,Intellectual Property Office,28/02/2023,Office Stationery,"Rights, Policy & Enforcement Directorate",Amznmktplace,H57720230302qkqygsmlk,8.18,Not Applicable
Department for Business Energy and Industrial Strategy,Intellectual Property Office,23/02/2023,Legal Consultancy,DDaT Directorate,Ipo,H57720230302rtdtonkxq,-170.00,Not Applicable
Department for Business Energy and Industrial Strategy,Intellectual Property Office,23/02/2023,Legal Consultancy,DDaT Directorate,Ipo,H57720230302xtfkhtsnv,-170.00,Not Applicable
